Workbook

Sheet France Stat

Sheet Cout de transport
B1: Coût de Transport
C5: Pds/Liv 3 mois | D5: Nb Liv 3 mois | E5: €/Kg 3 mois | F5: Pds/Liv 6 mois | G5: Nb Liv 6 mois | H5: €/Kg 6 mois
A6: CAD | B6: EURL MEUNIER MILLAU 12 | C6: 6.34 | D6: 1 | E6: 0.15 | F6: 6.34 | G6: 1 | H6: 0.15
A7: CAD | B7: GAMEL ET FILS VILLEFRANCHE PAN | C7: 185.5 | D7: 1 | E7: 0.15 | F7: 185.5 | G7: 1 | H7: 0.15
A8: G | B8: AMBASSADE D AUVERGNE PARIS | F8: 23.34 | G8: 8 | H8: 2.416452442
A9: G | B9: AU BEL HORIZON SEBRAZAC | F9: 64.51 | G9: 1 | H9: 0.283831964
A10: G | B10: AU PETIT SUISSE PARIS BC ODEON | C10: 32.21 | D10: 1 | E10: 1.751009003 | F10: 31.105 | G10: 2 | H10: 1.81321331
A11: G | B11: AUBERGE DE LAPARROT CORN | F11: 22.3966667 | G11: 3 | H11: 1.648459592
A12: G | B12: AUBERGE DU PERE ROUSSEL LA COU | F12: 27.94 | G12: 1 | H12: 0.5823192555
A13: G | B13: BIE DU PRAZ COURCHEVEL | C13: 51.42 | D13: 1 | E13: 1.018475301 | F13: 145.9533333 | G13: 6 | H13: 0.5750513863
A14: G | B14: BIE GALY PIERRE 12 NAUCELLE | F14: 5.3 | G14: 1 | H14: 3.069811321
A15: G | B15: BIE HUC PHILIPPE CAMARES | F15: 123.9 | G15: 1 | H15: 0.2033898305
A16: G | B16: BIE NOTRE DAME LESCAR | F16: 43.4366667 | G16: 3 | H16: 0.8837387768
A17: G | B17: BILDE THIERRY | F17: 13.3 | G17: 1 | H17: 1.223308271
A18: G | B18: BOUCHERIE LEBEAU CHAPELLE 44 | F18: 87.67 | G18: 4 | H18: 0.5637276149
A19: G | B19: BRASSERIE AUX MINISTERES PARIS | C19: 48.56 | D19: 1 | E19: 1.231260297 | F19: 32.2166667 | G19: 3 | H19: 1.785721676
A20: G | B20: CASINO CG815 CLERMONT F EDI | C20: 44.23 | D20: 1 | E20: 0.9988695456 | F20: 31.24 | G20: 8 | H20: 1.343910051
A21: G | B21: CASINO CS397 ALBI CANTEPAU EDI | C21: 19.26 | D21: 1 | E21: 0.3390446521 | F21: 47.812 | G21: 5 | H21: 0.3390278591
A22: G | B22: CASINO CS582 H SERRES TLSE EDI | F22: 13.98 | G22: 2 | H22: 0
A23: G | B23: CASINO CS588 FLEURANCE EDI | F23: 14.5566667 | G23: 3 | H23: 0.3389512251
A24: G | B24: CASINO CS591 FUMEL EDI | C24: 18.96 | D24: 1 | E24: 0.3389767933 | F24: 24.46 | G24: 4 | H24: 0.3389104661
A25: G | B25: CASINO CS594 VALENCE AGEN EDI | F25: 14.935 | G25: 4 | H25: 0.3391362571
A26: G | B26: CASINO CS714 LATOURBASELNE EDI | F26: 18.72 | G26: 1 | H26: 0.3387820513
A27: G | B27: CASINO CS735 S JEAN D ILAC EDI | C27: 21.45 | D27: 1 | E27: 1.942657343 | F27: 19.62 | G27: 7 | H27: 2.123853211
A28: G | B28: CASINO CS737 BEAUM LOMA LIVDIR | F28: 20.72 | G28: 1 | H28: 1.608108108
A29: G | B29: CASINO CS737 BEAUMONT LOM EDI | C29: 28.86 | D29: 2 | E29: 0.3390679141 | F29: 28.2542857 | G29: 7 | H29: 0.3390585499
A30: G | B30: CASINO CS748 MERIGNAC EDI | C30: 20.13 | D30: 1 | E30: 2.070044709 | F30: 22.696 | G30: 5 | H30: 1.836006345
A31: G | B31: CASINO CS796 ARCACHON MER EDI | C31: 19.525 | D31: 2 | E31: 0.3388988476 | F31: 19.84 | G31: 5 | H31: 0.3390221774
A32: G | B32: CASINO CS842 AGEN EDI | F32: 40.1 | G32: 2 | H32: 0.3389276808
A33: G | B33: CASINO CS902 BONNEFOY EDI | C33: 15.81 | D33: 2 | E33: 0.3388361796 | F33: 15.0525 | G33: 8 | H33: 0.3389885401
A34: G | B34: CASINO CS904 PAU CH GAULLE EDI | C34: 19.06 | D34: 1 | E34: 0.3388247639 | F34: 23.345 | G34: 6 | H34: 0.3390590419
A35: G | B35: CASINO CS914 TALENCE EDI | C35: 19.525 | D35: 2 | E35: 2.13418694 | F35: 19.35 | G35: 8 | H35: 2.153488372
A36: G | B36: CC EAUBONNE SODEXO SFRS | F36: 181.6075 | G36: 4 | H36: 0.6342648294
A37: G | B37: CODIFRAIS LONGUEUIL STE MARIE | C37: 170.94 | D37: 1 | E37: 0.5766175266 | F37: 237.4722222 | G37: 9 | H37: 0.5192354661
A38: G | B38: CORA BLOIS VILLEBAROU | F38: 183.34 | G38: 1 | H38: 0.5222428275
A39: G | B39: CRECHES MARSEILLE SFRS 100871 | F39: 158.8725 | G39: 4 | H39: 0.3389777967
A40: G | B40: CS595 MONTUSSAN edi | F40: 18.984 | G40: 5 | H40: 2.195006321
A41: G | B41: CS755 IZON edi | C41: 18.82 | D41: 1 | E41: 2.2141339 | F41: 19.374 | G41: 5 | H41: 2.150820688
A42: G | B42: CS876 SALLELES D AUDE EDI | C42: 33.38 | D42: 1 | E42: 0.9029358898 | F42: 22.2814286 | G42: 7 | H42: 1.352696031
A43: G | B43: CUISINE CENTRALE PESSAC | F43: 730.98 | G43: 2 | H43: 0.3414949793
A44: G | B44: DAVIGEL ROUXMESNIL BOUTEILLE | F44: 20.13 | G44: 3 | H44: 1.576419937
A45: G | B45: EHPAD MUR DE BARREZ | C45: 13.63 | D45: 1 | E45: 1.193690389 | F45: 18.0025 | G45: 4 | H45: 0.9320927649
A46: G | B46: FARBOS GIMONT | F46: 68.118 | G46: 5 | H46: 0.4745294929
A47: G | B47: FOYER ESTELLE DES CARMES FIGEA | F47: 19.6475 | G47: 4 | H47: 1.879119481
A48: G | B48: G CASINO CG334 ANDRE CUBZ EDI | C48: 16.46 | D48: 1 | E48: 2.531591738 | F48: 15.7766667 | G48: 3 | H48: 2.641242341
A49: G | B49: G CASINO CG880 VILLENAVE EDI | F49: 47.1457143 | G49: 7 | H49: 0.9142779225
A50: G | B50: HOTEL REST BERGERIE DU LARZAC | F50: 5 | G50: 1 | H50: 3.254
A51: G | B51: HOTEL-RESTAURANT DU PONT-NEUF | C51: 2.47 | D51: 1 | E51: 6.587044534 | F51: 25.106 | G51: 5 | H51: 0.6643033538
A52: G | B52: L AUBERGE AVEYRONNAISE | C52: 14.66 | D52: 1 | E52: 3.847203274 | F52: 27.358 | G52: 5 | H52: 2.061554207
A53: G | B53: L AUBERGE DE CASTELNAU | F53: 14.63 | G53: 1 | H53: 1.112098428
A54: G | B54: LA LOUCHE A BEURRE LOURMARIN | F54: 58.22 | G54: 4 | H54: 0.5538474751
A55: G | B55: LA MAISON DES LUMIERES BEAUMON | F55: 21.845 | G55: 2 | H55: 1.525291829
A56: G | B56: LA TABLE D EMILE TOULOUSE | F56: 9.55 | G56: 3 | H56: 3.156020942
A57: G | B57: LA TABLE DE POL LORGUES | C57: 15.32 | D57: 1 | E57: 2.238903394 | F57: 17 | G57: 2 | H57: 2.017647059
A58: G | B58: LE BOUSCAT PROD ELIOR REST | F58: 211.45 | G58: 1 | H58: 0.4017498226
A59: G | B59: LE JARDIN DU PAVILLON ORLEANS | F59: 30.115 | G59: 4 | H59: 1.723974763
A60: G | B60: LE MAZET ANDUZE REST LE CABANO | F60: 15.296 | G60: 5 | H60: 1.970449791
A61: G | B61: LES 3 BRASSEURS 34 MONTPELLIER | C61: 41.86 | D61: 1 | E61: 0.6629240325 | F61: 60.8133333 | G61: 3 | H61: 0.4609186582
A62: G | B62: LINARD LANUEJOULS | F62: 7.4 | G62: 1 | H62: 7.621621622
A63: G | B63: METRO CANNES 27 | F63: 37.39 | G63: 1 | H63: 0.9761968441
A64: G | B64: METRO VAUX EN VELIN 30 | F64: 13.03 | G64: 1 | H64: 2.6323868
A65: G | B65: METRO VILLE LA GRAND | F65: 124.6 | G65: 1 | H65: 0.4856260032
A66: G | B66: NIMES PASSION FROID SOD | F66: 77.5 | G66: 1 | H66: 0.424516129
A67: G | B67: PASSION FROID RHONE ALPES AUVE | F67: 50.43 | G67: 1 | H67: 0.7208011104
A68: G | B68: PICARD SURGELES | F68: 0 | G68: 1
A69: G | B69: POMONA DISNEY PLATEFORME | F69: 336 | G69: 1 | H69: 0.5392232143
A70: G | B70: PRO A PRO DIST MONTAUBAN | F70: 39.24 | G70: 1 | H70: 0.8491335372
A71: G | B71: PRO A PRO ILLKIRCH GRAFFENSTAD | F71: 67.155 | G71: 2 | H71: 0.7126051671
A72: G | B72: PRO A PRO NORD CHALETTE/LOING | F72: 42.5 | G72: 1 | H72: 1.275764706
A73: G | B73: PRO A PRO SODEGER CHATEAU GONT | C73: 915.02 | D73: 1 | E73: 0.3896745426 | F73: 915.02 | G73: 1 | H73: 0.3896745426
A74: G | B74: RELAIS DE FARROU | F74: 18.91 | G74: 2 | H74: 0.8603913273
A75: G | B75: RELAIS LARZAC CAFETARIA | C75: 3.74 | D75: 1 | E75: 4.35026738 | F75: 5.4233333 | G75: 3 | H75: 3
A76: G | B76: REST CAFE DES NEGOCIANTS 34 | F76: 35.49 | G76: 1 | H76: 0.7379543533
A77: G | B77: REST LA TERRISSE TOULOUSE | C77: 42.99 | D77: 1 | E77: 0.7429634799 | F77: 50.6275 | G77: 4 | H77: 0.6308824256
A78: G | B78: REST LE CHAUDRON CHAVANNES/L E | F78: 38 | G78: 4 | H78: 1.170131579
A79: G | B79: REST O FIL ROUGE PARIS | C79: 18.93 | D79: 1 | E79: 2.979397781 | F79: 15.4475 | G79: 4 | H79: 3.651076226
A80: G | B80: REST VALTHOGALOU ST MARTIN DE | C80: 73.24 | D80: 1 | E80: 0.5442381213 | F80: 85.41 | G80: 4 | H80: 0.4666900831
A81: G | B81: RESTAURANT AXIS 13006 MARSEILL | F81: 16.41 | G81: 3 | H81: 1.836684948
A82: G | B82: RESTAURANT DE LA PAIX | F82: 17.23 | G82: 3 | H82: 1.520023215
A83: G | B83: RESTAURANT L ORACLE 34 MONTPEL | F83: 36.73 | G83: 1 | H83: 0.7130411108
A84: G | B84: ROYAL ALBI ALBI | F84: 22.49 | G84: 1 | H84: 1.481547354
A85: G | B85: SAERENS BUGGENHOUT | F85: 60.9 | G85: 1 | H85: 0.981773399
A86: G | B86: SARL BALDY | C86: 32.23 | D86: 1 | E86: 0.504809184 | F86: 48.5325 | G86: 4 | H86: 0.356256117
A87: G | B87: SAVEURS DU BESSILLON SILLANS L | F87: 24.445 | G87: 2 | H87: 1.403149928
A88: G | B88: SODEXO SFRS C.CENTRALE NANCY | F88: 664.325 | G88: 2 | H88: 0.3819102096
A89: G | B89: SOREST ALR MONTESSON | C89: 101.98 | D89: 1 | E89: 0.6342616199 | F89: 102.3266667 | G89: 3 | H89: 0.628223337
A90: G | B90: SPAR MONTIGNAC TL761 EDI | C90: 18.87 | D90: 1 | E90: 2.208267091 | F90: 19.5 | G90: 2 | H90: 2.136923077
A91: G | B91: SPECIALITES DE SALAISONS BRACH | C91: 48.02 | D91: 1 | E91: 0.7886297376 | F91: 73.585 | G91: 4 | H91: 0.5261602229
A92: G | B92: STE HOTELIERE DE VALRUGUES ST | F92: 79.9533333 | G92: 3 | H92: 0.4114900358
A93: G | B93: SU (130) VERGEZE PLAT | C93: 43.65 | D93: 1 | E93: 0.7317296678 | F93: 46.3166667 | G93: 3 | H93: 0.6896005757
A94: G | B94: SU (5153) BELBERAUD PLAT | F94: 171.4 | G94: 2 | H94: 0.3390052509
A95: G | B95: SU(0166)CLERMONT L HERAULT PLA | C95: 87.04 | D95: 1 | E95: 0.3284696691 | F95: 102.334 | G95: 5 | H95: 0.2992553794
A96: G | B96: TRADEO BURNHAUPT 68 | F96: 56.3333333 | G96: 3 | H96: 0.6956804734
A97: G | B97: URBAN KITCHEN MARSEILLE | F97: 20.54 | G97: 5 | H97: 1.484907498
A98: G | B98: VENTES AU COMPTANT PE | F98: 6.88 | G98: 1 | H98: 4.985465116
A99: G | B99: VENTES CLIENTS DIVERS | F99: 36.79 | G99: 1 | H99: 0.8263114977
A100: G | B100: VILLE DE NICE LOT VEAU | C100: 1.98 | D100: 1 | E100: 18.43434343 | F100: 1.98 | G100: 1 | H100: 18.43434343
A101: G | B101: VILLE NICE SURGELES VEAU BIO | F101: 259.42 | G101: 2 | H101: 0.4105042017
A102: GS | B102: CASINO CS119 NEMOURS EDI | C102: 23.06 | D102: 6 | E102: 0 | F102: 22.5191667 | G102: 19 | H102: 0.3613218369
A103: GS | B103: CASINO CS370 PARIS/MONTP EDI | C103: 19.8916667 | D103: 4 | E103: 0.818098031 | F103: 23.4575 | G103: 16 | H103: 0.6937369001
A104: GS | B104: CASINO CS530 BRIOUDE EDI | C104: 18.5072727 | D104: 9 | E104: 0.168484134 | F104: 18.2847368 | G104: 13 | H104: 0.2961918195
A105: GS | B105: CASINO CS921 PARIS ITALIE EDI | F105: 72.3133333 | G105: 14 | H105: 0.04500783627
A106: GS | B106: CASINO CS922 PARIS FLANDRE EDI | C106: 19.75875 | D106: 14 | E106: 0.3088505093 | F106: 21.7725581 | G106: 33 | H106: 0.4724423747
A107: GS | B107: CS132 VILLENEUVE/YONNE edi | C107: 25.81125 | D107: 7 | E107: 0 | F107: 27.0333333 | G107: 23 | H107: 0.3611837238
A108: GS | B108: CS528 CHAVILLE EDI | C108: 19.6066667 | D108: 3 | E108: 0 | F108: 19.6066667 | G108: 3 | H108: 0
A109: GS | B109: CS726 VULAINES TRAD EDI | F109: 154.61 | G109: 1 | H109: 0
A110: M | B110: BIE COMBAS CHRISTIAN JARNAC | F110: 230.5 | G110: 1 | H110: 0
A111: M | B111: CG304 ST BRIEUC liv directe | C111: 108.2066667 | D111: 2 | E111: 0 | F111: 108.2066667 | G111: 2 | H111: 0
A112: M | B112: CG809 ST LOUIS liv directe | C112: 219.38 | D112: 2 | E112: 0 | F112: 219.38 | G112: 2 | H112: 0
A113: M | B113: DOUNIA HALLAL BORDEAUX | C113: 175.2409091 | D113: 13 | E113: 0.1925106996 | F113: 134.5651685 | G113: 28 | H113: 0.1952592203
A114: M | B114: G CASINO CG880 VILLENAVE LIV D | C114: 252.0333333 | D114: 2 | E114: 0.150874223 | F114: 252.0333333 | G114: 2 | H114: 0.150874223
A115: M | B115: TRADEO BURNHAUPT 68 | C115: 526.4761111 | D115: 5 | E115: 0.09220931202 | F115: 526.4761111 | G115: 5 | H115: 0.09220931202
A116: M | B116: VALLANCE NANCY 54 | C116: 164.2306897 | D116: 10 | E116: 0.2440755119 | F116: 160.0586792 | G116: 18 | H116: 0.2349337684
A117: M | B117: VALLANCE ST MAX 54 | C117: 182.7214815 | D117: 9 | E117: 0.2336843364 | F117: 184.1565152 | G117: 22 | H117: 0.2189778458
A118: M42 | B118: CASINO CG206 CHASSE/RHON EDI | C118: 20.4981818 | D118: 13 | E118: 1.161464431 | F118: 20.0402632 | G118: 21 | H118: 1.17520124
A119: M43 | B119: CASINO CG341 OYONNAX EDI | C119: 18.5570968 | D119: 21 | E119: 1.265061623 | F119: 18.5245652 | G119: 28 | H119: 1.275432152
A120: M44 | B120: CASINO CG804 CHAUMONT EDI | C120: 28.7927586 | D120: 19 | E120: 0.9001640738 | F120: 29.0123077 | G120: 32 | H120: 0.9220317637
A121: M45 | B121: CASINO CG815 CLERMONT F EDI | C121: 46.1145455 | D121: 8 | E121: 0.5990005126 | F121: 39.9870588 | G121: 12 | H121: 0.6741077996
A122: M46 | B122: CASINO CG831 MONTCEAU EDI | C122: 19.3704 | D122: 17 | E122: 1.214923801 | F122: 18.9269767 | G122: 25 | H122: 1.252327182
A123: M47 | B123: CASINO CG836 TROCY EDI | C123: 18.9223529 | D123: 11 | E123: 1.170946282 | F123: 18.3562069 | G123: 18 | H123: 1.244483685
A124: M48 | B124: CASINO CG879 VILLEUF/SAONE EDI | C124: 22.8314286 | D124: 14 | E124: 1.096936136 | F124: 20.9208571 | G124: 22 | H124: 1.130245961
A125: M49 | B125: CASINO CS119 NEMOURS EDI | C125: 19.9414286 | D125: 5 | E125: 1.103925783 | F125: 19.6918182 | G125: 7 | H125: 1.305761507
A126: M50 | B126: CASINO CS370 PARIS/MONTP EDI | C126: 20.34 | D126: 3 | E126: 1.351760079 | F126: 19.8076923 | G126: 7 | H126: 1.534702913
A127: M51 | B127: CASINO CS530 BRIOUDE EDI | C127: 18.33 | D127: 1 | E127: 0.422913257 | F127: 18.3511111 | G127: 6 | H127: 1.304419956
A128: M52 | B128: CASINO CS551 SALAISE/SANNE EDI | C128: 56.2056667 | D128: 21 | E128: 0.5475966243 | F128: 49.1364815 | G128: 37 | H128: 0.6154343344
A129: M53 | B129: CASINO CS727 HARDRICOURT EDI | C129: 16.5457143 | D129: 9 | E129: 1.511548092 | F129: 16.485 | G129: 18 | H129: 1.515912735
A130: M54 | B130: CASINO CS748 MERIGNAC EDI | C130: 23.7688889 | D130: 7 | E130: 0.8362004488 | F130: 25.030625 | G130: 11 | H130: 0.9873804589
A131: M55 | B131: CASINO CS759 MERIGNAC Y EDI | F131: 72.955 | G131: 2 | H131: 0.5814920156
A132: M56 | B132: CASINO CS921 PARIS ITALIE EDI | F132: 76.7857143 | G132: 5 | H132: 0.4588204651
A133: M57 | B133: CASINO CS922 PARIS FLANDRE EDI | C133: 26.832 | D133: 7 | E133: 0.9212395647 | F133: 25.07 | G133: 12 | H133: 0.9975332228
A134: M58 | B134: CS132 VILLENEUVE/YONNE edi | C134: 33.377 | D134: 7 | E134: 0.7818767415 | F134: 29.0306667 | G134: 10 | H134: 0.9136384513
A135: M59 | B135: CS272 PARIS ST DIDIER edi | C135: 36.8766667 | D135: 18 | E135: 0.7591009069 | F135: 33.3340816 | G135: 30 | H135: 0.8377801723
A136: M60 | B136: CS528 CHAVILLE EDI | C136: 16.2247368 | D136: 12 | E136: 1.559256496 | F136: 15.3382051 | G136: 23 | H136: 1.610729033
A137: M61 | B137: CS595 MONTUSSAN edi | C137: 18.1888889 | D137: 6 | E137: 1.316841784 | F137: 18.0727273 | G137: 7 | H137: 1.405985915
A138: M62 | B138: CS726 VULAINES TRAD EDI | C138: 144.58 | D138: 1 | E138: 0 | F138: 144.58 | G138: 1 | H138: 0
A139: M63 | B139: CS755 IZON edi | C139: 19.1883333 | D139: 7 | E139: 1.256961695 | F139: 23.5235 | G139: 12 | H139: 1.11144175
A140: M64 | B140: G CASINO CG311 LA RICAMARI EDI | C140: 23.3358333 | D140: 9 | E140: 0.9060314966 | F140: 20.0848485 | G140: 23 | H140: 1.140316838
A141: M65 | B141: G CASINO CG334 ANDRE CUBZ EDI | C141: 15.445 | D141: 4 | E141: 1.521322974 | F141: 15.2445455 | G141: 8 | H141: 1.342345996
A142: M66 | B142: G CASINO CG830 MONTHIEU EDI | C142: 19.94 | D142: 1 | E142: 1.600501505 | F142: 19.94 | G142: 1 | H142: 1.600501505
A143: M67 | B143: G CASINO CG880 VILLENAVE EDI | C143: 36.6566667 | D143: 8 | E143: 0.7921319451 | F143: 35.4475 | G143: 10 | H143: 0.8769148036
A144: M68 | B144: SALAISONS DU SANCY BESSE 63 | F144: 209.38 | G144: 1 | H144: 0.2674945076
A145: M69 | B145: SPAR MONTIGNAC TL761 EDI | C145: 17.6 | D145: 1 | E145: 1.788607955 | F145: 17.7466667 | G145: 2 | H145: 1.307682194
A146: MA | B146: ALPAGEL GRENOBLE ECHIROLLES | F146: 33.3758824 | G146: 13 | H146: 0.4565677929
A147: MA | B147: BF VIANDES FONTAINE | C147: 135.1557143 | D147: 11 | E147: 0.2637077339 | F147: 127.7305405 | G147: 18 | H147: 0.2801895037
A148: MA | B148: BIE CHARC LA MUROISE ST BONNET | C148: 43.3615385 | D148: 5 | E148: 0.3496487493 | F148: 43.3615385 | G148: 5 | H148: 0.3496487493
A149: MA | B149: BIGARD LYON CORBAS | F149: 82.742 | G149: 3 | H149: 0.2582412801
A150: MA | B150: BIGARD ST EGREVE | C150: 119.5204444 | D150: 19 | E150: 0.2264098006 | F150: 111.4086667 | G150: 26 | H150: 0.2348943529
A151: MA | B151: BOURAOUI ABDELHAK | C151: 245.0038889 | D151: 7 | E151: 0.1886518808 | F151: 241.2886486 | G151: 20 | H151: 0.2062457436
A152: MA | B152: BRON VIANDE BRON | F152: 368.21 | G152: 5 | H152: 0.2247945466
A153: MA | B153: COBOLY | C153: 20.1166667 | D153: 4 | E153: 0.7482960508 | F153: 18.1590476 | G153: 10 | H153: 0.7896496565
A154: MA | B154: DUCCI LYON | C154: 261.3042857 | D154: 3 | E154: 0.1804240267 | F154: 203.967619 | G154: 11 | H154: 0.2054245305
A155: MA | B155: GAUTHEY GIVORS | F155: 125.99 | G155: 2 | H155: 0.2410984999
A156: MA | B156: GAYET PONTCHARRA | C156: 104.0727273 | D156: 4 | E156: 0.1973209294 | F156: 126.8321053 | G156: 8 | H156: 0.2107838377
A157: MA | B157: GESLER HOTONNES | C157: 361.2329268 | D157: 17 | E157: 0.2058195003 | F157: 315.0080247 | G157: 41 | H157: 0.2125180429
A158: MA | B158: I D FRAIS MONTAGNAT | C158: 28.47 | D158: 1 | E158: 0.531998595 | F158: 28.47 | G158: 1 | H158: 0.531998595
A159: MA | B159: ISERE DISTRIBUTION SA | F159: 91.285 | G159: 2 | H159: 0.2817056472
A160: MA | B160: LA BOUCHERIE LIMOUSINE | F160: 40.825 | G160: 3 | H160: 0.3671198204
A161: MA | B161: LECLERC CHATTE ISERE LR | F161: 43.15 | G161: 2 | H161: 0.3217902665
A162: MA | B162: MAISON TANZILLI MIONS | C162: 27.0905556 | D162: 7 | E162: 0.5597112565 | F162: 27.0905556 | G162: 7 | H162: 0.5597112565
A163: MA | B163: PHILAUD LYON | C163: 45.4666667 | D163: 6 | E163: 0.3605674487 | F163: 52.4588889 | G163: 7 | H163: 0.3282570478
A164: MA | B164: REST LES 2 DAUPHINS VILLEURBAN | C164: 117.19 | D164: 1 | E164: 0.2265466337 | F164: 75.833 | G164: 7 | H164: 0.2545052945
A165: MA | B165: ROLLAND ARS SUR FORMANS | C165: 40.8533333 | D165: 3 | E165: 0.4112434726 | F165: 40.8533333 | G165: 3 | H165: 0.4112434726
A166: MA | B166: ROUDAUT LECLERC ST PAUL ROMANS | F166: 47.5 | G166: 1 | H166: 0
A167: MA | B167: ROUDAUT SAS LECLERC LABEL | F167: 255.2075 | G167: 2 | H167: 0.1189110822
A168: MA | B168: SAVOIE GEL CHAMBERY | C168: 201.159375 | D168: 7 | E168: 0.09286169238 | F168: 161.3907407 | G168: 16 | H168: 0.07823203406
A169: MA | B169: SODELY BRIGNAIS | C169: 470.21 | D169: 1 | E169: 0.216525595 | F169: 470.21 | G169: 1 | H169: 0.216525595
A170: MA | B170: SOPACEL ST ROMAIN DE POPEY | C170: 268.8 | D170: 1 | E170: 0.2190197173 | F170: 268.8 | G170: 1 | H170: 0.2190197173
A171: MD | B171: AL BARAKA BRIVE LA GAILLARDE | C171: 91.195 | D171: 12 | E171: 0.206010929 | F171: 91.195 | G171: 12 | H171: 0.206010929
A172: MD | B172: BIE MGDP INVESTISSEMENT VILLIE | C172: 3979.37 | D172: 9 | E172: 0.2297916504 | F172: 4437.853571 | G172: 14 | H172: 0.2297106951
A173: MD | B173: BIGARD LYON CORBAS | C173: 127.8366667 | D173: 9 | E173: 0.2407247095 | F173: 101.7969565 | G173: 23 | H173: 0.2469656136
A174: MD | B174: CTRE F PLAINEMAISON STEAK HACH | C174: 1842.178947 | D174: 19 | E174: 0.1978376293 | F174: 2312.815556 | G174: 45 | H174: 0.1974931757
A175: MD | B175: CTRE FRANCIS PLAINEMAISON | C175: 241.425 | D175: 8 | E175: 0.2090675158 | F175: 288.6142857 | G175: 21 | H175: 0.2069537527
A176: MD | B176: DEPLANCHE LAUBEYRE | F176: 95.81 | G176: 1 | H176: 0.2615280242
A177: MD | B177: DESTREL GRAMAT 46 | F177: 813.2666667 | G177: 3 | H177: 0.1999819657
A178: MD | B178: ERIC PAYROT SAINT-CERE | C178: 247.1666667 | D178: 3 | E178: 0.1844315576 | F178: 247.1666667 | G178: 3 | H178: 0.1844315576
A179: MD | B179: ETS LOURDEL VAUCHELLES 80 | C179: 172.01 | D179: 2 | E179: 0.404293355 | F179: 172.01 | G179: 2 | H179: 0.404293355
A180: MD | B180: EURODIS RUNGIS(AGNEAUX) | C180: 264.5042857 | D180: 35 | E180: 0.2408013913 | F180: 241.2156164 | G180: 73 | H180: 0.2419413314
A181: MD | B181: FGDS COPVIAL REICHSTETT | C181: 778.4 | D181: 1 | E181: 0 | F181: 778.4 | G181: 1 | H181: 0
A182: MD | B182: METRO PERIGUEUX 24 | C182: 38.43 | D182: 1 | E182: 0.277335415 | F182: 36.905 | G182: 2 | H182: 0.2807343178
A183: MD | B183: OVIMPEX | C183: 626.4533333 | D183: 9 | E183: 0.2339904719 | F183: 548.838 | G183: 25 | H183: 0.2346932246
A184: MD | B184: QUISQUATER & CO DENDERMONDE | C184: 89.0833333 | D184: 9 | E184: 0.2640536327 | F184: 89.0833333 | G184: 9 | H184: 0.2640536327
A185: MD | B185: ROUILLON SAUVAGE STEACK HACHE | C185: 254.4444444 | D185: 18 | E185: 0.3984181223 | F185: 261.636 | G185: 40 | H185: 0.3980794883
A186: MD | B186: SA BELOT FRERES | C186: 216.313 | D186: 10 | E186: 0.3650085755 | F186: 193.6956522 | G186: 23 | H186: 0.3666911336
A187: MD | B187: SARL EXO PRODUITS 19 BRIVE | C187: 79.2157895 | D187: 19 | E187: 0.2111833101 | F187: 81.7355769 | G187: 51 | H187: 0.2099692959
A188: MD | B188: SAUVAGE VIANDES FEUQUIERES | C188: 100.3 | D188: 1 | E188: 0.4172582253 | F188: 104.6333333 | G188: 3 | H188: 0.4159923542
A189: MD | B189: SAUVAGE VIANDES STEACK HACHE | C189: 156.59 | D189: 2 | E189: 0.4060699917 | F189: 293.0966667 | G189: 6 | H189: 0.3967974161
A190: MD | B190: SICABA BOURBON | C190: 88.44 | D190: 1 | E190: 0 | F190: 88.44 | G190: 1 | H190: 0
A191: MD | B191: SODELY BRIGNAIS | C191: 394.12 | D191: 30 | E191: 0.2242395717 | F191: 311.6465957 | G191: 47 | H191: 0.226334521
A192: MD | B192: SODEXO ANOV FRANCE BRIVE | C192: 8.7633333 | D192: 3 | E192: 0.5276531 | F192: 11.246 | G192: 5 | H192: 0.4491908234
A193: MD | B193: SOPACEL ST ROMAIN DE POPEY | C193: 405.65 | D193: 2 | E193: 0.2240120794 | F193: 405.65 | G193: 2 | H193: 0.2240120794
A194: MD | B194: SOUFFERANT VIANDES MARCIGNY 71 | C194: 192.8 | D194: 4 | E194: 0.3452372925 | F194: 218.8444444 | G194: 9 | H194: 0.3433133631
A195: MD | B195: STE GUY LAGACHE FRIAUCOURT | C195: 184.3333333 | D195: 3 | E195: 0.4030723327 | F195: 183.85 | G195: 6 | H195: 0.4031193908
A196: MD | B196: TRADEO BURNHAUPT 68 | F196: 575.1683333 | G196: 6 | H196: 0.2580375021
A197: MD | B197: VIANDES DE CORREZE BRIVE | C197: 123.9555556 | D197: 9 | E197: 0.1969747221 | F197: 111.23375 | G197: 16 | H197: 0.199855035
A198: MDU | B198: 8 A HUIT IGNY MARGUERITE DISTR | C198: 68.1674194 | D198: 10 | E198: 0.1152333676 | F198: 66.5647561 | G198: 24 | H198: 0.1080316069
A199: MDU | B199: AU BOEUF NIVERNAIS 75 PARIS | C199: 92.25375 | D199: 8 | E199: 0.08760438826 | F199: 72.8913636 | G199: 19 | H199: 0.0958824153
A200: MDU | B200: AU BON BILLOT PAMFOU | C200: 41.91125 | D200: 8 | E200: 0.1011363297 | F200: 54.7776 | G200: 20 | H200: 0.1178639931
A201: MDU | B201: BBR BIE LA SABLIERE PARIS14 75 | C201: 640.3846667 | D201: 15 | E201: 0.0779604689 | F201: 478.2683784 | G201: 31 | H201: 0.07446797088
A202: MDU | B202: Be PLACE STALINGRA MEUDON 92 | C202: 74.3115789 | D202: 18 | E202: 0.09798241638 | F202: 59.9889796 | G202: 41 | H202: 0.1173053327
A203: MDU | B203: BIE BARONE GAYLORD SCEAUX | C203: 111.5766667 | D203: 3 | E203: 0 | F203: 111.5766667 | G203: 3 | H203: 0
... 472 more rows

Sheet Feuil1
A5: Tournées | B5: Clients | C5: 3 mois | F5: 6 mois
C6: Pds/Liv | D6: Nb Liv | E6: €/Kg | F6: Pds/Liv | G6: Nb Liv | H6: €/Kg
A7: CAD | B7: EURL MEUNIER MILLAU 12 | C7: 6.34 | D7: 1 | E7: 0.15 | F7: 6.34 | G7: 1 | H7: 0.15
A8: CAD | B8: GAMEL ET FILS VILLEFRANCHE PAN | C8: 185.5 | D8: 1 | E8: 0.15 | F8: 185.5 | G8: 1 | H8: 0.15
A9: G | B9: AMBASSADE D AUVERGNE PARIS | F9: 23.34 | G9: 8 | H9: 2.416452442
A10: G | B10: AU BEL HORIZON SEBRAZAC | F10: 64.51 | G10: 1 | H10: 0.283831964
A11: G | B11: AU PETIT SUISSE PARIS BC ODEON | C11: 32.21 | D11: 1 | E11: 1.751009003 | F11: 31.105 | G11: 2 | H11: 1.81321331
A12: G | B12: AUBERGE DE LAPARROT CORN | F12: 22.3966667 | G12: 3 | H12: 1.648459592
A13: G | B13: AUBERGE DU PERE ROUSSEL LA COU | F13: 27.94 | G13: 1 | H13: 0.5823192555
A14: G | B14: BIE DU PRAZ COURCHEVEL | C14: 51.42 | D14: 1 | E14: 1.018475301 | F14: 145.9533333 | G14: 6 | H14: 0.5750513863
A15: G | B15: BIE GALY PIERRE 12 NAUCELLE | F15: 5.3 | G15: 1 | H15: 3.069811321
A16: G | B16: BIE HUC PHILIPPE CAMARES | F16: 123.9 | G16: 1 | H16: 0.2033898305
A17: G | B17: BIE NOTRE DAME LESCAR | F17: 43.4366667 | G17: 3 | H17: 0.8837387768
A18: G | B18: BILDE THIERRY | F18: 13.3 | G18: 1 | H18: 1.223308271
A19: G | B19: BOUCHERIE LEBEAU CHAPELLE 44 | F19: 87.67 | G19: 4 | H19: 0.5637276149
A20: G | B20: BRASSERIE AUX MINISTERES PARIS | C20: 48.56 | D20: 1 | E20: 1.231260297 | F20: 32.2166667 | G20: 3 | H20: 1.785721676
A21: G | B21: CASINO CG815 CLERMONT F EDI | C21: 44.23 | D21: 1 | E21: 0.9988695456 | F21: 31.24 | G21: 8 | H21: 1.343910051
A22: G | B22: CASINO CS397 ALBI CANTEPAU EDI | C22: 19.26 | D22: 1 | E22: 0.3390446521 | F22: 47.812 | G22: 5 | H22: 0.3390278591
A23: G | B23: CASINO CS582 H SERRES TLSE EDI | F23: 13.98 | G23: 2 | H23: 0
A24: G | B24: CASINO CS588 FLEURANCE EDI | F24: 14.5566667 | G24: 3 | H24: 0.3389512251
A25: G | B25: CASINO CS591 FUMEL EDI | C25: 18.96 | D25: 1 | E25: 0.3389767933 | F25: 24.46 | G25: 4 | H25: 0.3389104661
A26: G | B26: CASINO CS594 VALENCE AGEN EDI | F26: 14.935 | G26: 4 | H26: 0.3391362571
A27: G | B27: CASINO CS714 LATOURBASELNE EDI | F27: 18.72 | G27: 1 | H27: 0.3387820513
A28: G | B28: CASINO CS735 S JEAN D ILAC EDI | C28: 21.45 | D28: 1 | E28: 1.942657343 | F28: 19.62 | G28: 7 | H28: 2.123853211
A29: G | B29: CASINO CS737 BEAUM LOMA LIVDIR | F29: 20.72 | G29: 1 | H29: 1.608108108
A30: G | B30: CASINO CS737 BEAUMONT LOM EDI | C30: 28.86 | D30: 2 | E30: 0.3390679141 | F30: 28.2542857 | G30: 7 | H30: 0.3390585499
A31: G | B31: CASINO CS748 MERIGNAC EDI | C31: 20.13 | D31: 1 | E31: 2.070044709 | F31: 22.696 | G31: 5 | H31: 1.836006345
A32: G | B32: CASINO CS796 ARCACHON MER EDI | C32: 19.525 | D32: 2 | E32: 0.3388988476 | F32: 19.84 | G32: 5 | H32: 0.3390221774
A33: G | B33: CASINO CS842 AGEN EDI | F33: 40.1 | G33: 2 | H33: 0.3389276808
A34: G | B34: CASINO CS902 BONNEFOY EDI | C34: 15.81 | D34: 2 | E34: 0.3388361796 | F34: 15.0525 | G34: 8 | H34: 0.3389885401
A35: G | B35: CASINO CS904 PAU CH GAULLE EDI | C35: 19.06 | D35: 1 | E35: 0.3388247639 | F35: 23.345 | G35: 6 | H35: 0.3390590419
A36: G | B36: CASINO CS914 TALENCE EDI | C36: 19.525 | D36: 2 | E36: 2.13418694 | F36: 19.35 | G36: 8 | H36: 2.153488372
A37: G | B37: CC EAUBONNE SODEXO SFRS | F37: 181.6075 | G37: 4 | H37: 0.6342648294
A38: G | B38: CODIFRAIS LONGUEUIL STE MARIE | C38: 170.94 | D38: 1 | E38: 0.5766175266 | F38: 237.4722222 | G38: 9 | H38: 0.5192354661
A39: G | B39: CORA BLOIS VILLEBAROU | F39: 183.34 | G39: 1 | H39: 0.5222428275
A40: G | B40: CRECHES MARSEILLE SFRS 100871 | F40: 158.8725 | G40: 4 | H40: 0.3389777967
A41: G | B41: CS595 MONTUSSAN edi | F41: 18.984 | G41: 5 | H41: 2.195006321
A42: G | B42: CS755 IZON edi | C42: 18.82 | D42: 1 | E42: 2.2141339 | F42: 19.374 | G42: 5 | H42: 2.150820688
A43: G | B43: CS876 SALLELES D AUDE EDI | C43: 33.38 | D43: 1 | E43: 0.9029358898 | F43: 22.2814286 | G43: 7 | H43: 1.352696031
A44: G | B44: CUISINE CENTRALE PESSAC | F44: 730.98 | G44: 2 | H44: 0.3414949793
A45: G | B45: DAVIGEL ROUXMESNIL BOUTEILLE | F45: 20.13 | G45: 3 | H45: 1.576419937
A46: G | B46: EHPAD MUR DE BARREZ | C46: 13.63 | D46: 1 | E46: 1.193690389 | F46: 18.0025 | G46: 4 | H46: 0.9320927649
A47: G | B47: FARBOS GIMONT | F47: 68.118 | G47: 5 | H47: 0.4745294929
A48: G | B48: FOYER ESTELLE DES CARMES FIGEA | F48: 19.6475 | G48: 4 | H48: 1.879119481
A49: G | B49: G CASINO CG334 ANDRE CUBZ EDI | C49: 16.46 | D49: 1 | E49: 2.531591738 | F49: 15.7766667 | G49: 3 | H49: 2.641242341
A50: G | B50: G CASINO CG880 VILLENAVE EDI | F50: 47.1457143 | G50: 7 | H50: 0.9142779225
A51: G | B51: HOTEL REST BERGERIE DU LARZAC | F51: 5 | G51: 1 | H51: 3.254
A52: G | B52: HOTEL-RESTAURANT DU PONT-NEUF | C52: 2.47 | D52: 1 | E52: 6.587044534 | F52: 25.106 | G52: 5 | H52: 0.6643033538
A53: G | B53: L AUBERGE AVEYRONNAISE | C53: 14.66 | D53: 1 | E53: 3.847203274 | F53: 27.358 | G53: 5 | H53: 2.061554207
A54: G | B54: L AUBERGE DE CASTELNAU | F54: 14.63 | G54: 1 | H54: 1.112098428
A55: G | B55: LA LOUCHE A BEURRE LOURMARIN | F55: 58.22 | G55: 4 | H55: 0.5538474751
A56: G | B56: LA MAISON DES LUMIERES BEAUMON | F56: 21.845 | G56: 2 | H56: 1.525291829
A57: G | B57: LA TABLE D EMILE TOULOUSE | F57: 9.55 | G57: 3 | H57: 3.156020942
A58: G | B58: LA TABLE DE POL LORGUES | C58: 15.32 | D58: 1 | E58: 2.238903394 | F58: 17 | G58: 2 | H58: 2.017647059
A59: G | B59: LE BOUSCAT PROD ELIOR REST | F59: 211.45 | G59: 1 | H59: 0.4017498226
A60: G | B60: LE JARDIN DU PAVILLON ORLEANS | F60: 30.115 | G60: 4 | H60: 1.723974763
A61: G | B61: LE MAZET ANDUZE REST LE CABANO | F61: 15.296 | G61: 5 | H61: 1.970449791
A62: G | B62: LES 3 BRASSEURS 34 MONTPELLIER | C62: 41.86 | D62: 1 | E62: 0.6629240325 | F62: 60.8133333 | G62: 3 | H62: 0.4609186582
A63: G | B63: LINARD LANUEJOULS | F63: 7.4 | G63: 1 | H63: 7.621621622
A64: G | B64: METRO CANNES 27 | F64: 37.39 | G64: 1 | H64: 0.9761968441
A65: G | B65: METRO VAUX EN VELIN 30 | F65: 13.03 | G65: 1 | H65: 2.6323868
A66: G | B66: METRO VILLE LA GRAND | F66: 124.6 | G66: 1 | H66: 0.4856260032
A67: G | B67: NIMES PASSION FROID SOD | F67: 77.5 | G67: 1 | H67: 0.424516129
A68: G | B68: PASSION FROID RHONE ALPES AUVE | F68: 50.43 | G68: 1 | H68: 0.7208011104
A69: G | B69: PICARD SURGELES | F69: 0 | G69: 1
A70: G | B70: POMONA DISNEY PLATEFORME | F70: 336 | G70: 1 | H70: 0.5392232143
A71: G | B71: PRO A PRO DIST MONTAUBAN | F71: 39.24 | G71: 1 | H71: 0.8491335372
A72: G | B72: PRO A PRO ILLKIRCH GRAFFENSTAD | F72: 67.155 | G72: 2 | H72: 0.7126051671
A73: G | B73: PRO A PRO NORD CHALETTE/LOING | F73: 42.5 | G73: 1 | H73: 1.275764706
A74: G | B74: PRO A PRO SODEGER CHATEAU GONT | C74: 915.02 | D74: 1 | E74: 0.3896745426 | F74: 915.02 | G74: 1 | H74: 0.3896745426
A75: G | B75: RELAIS DE FARROU | F75: 18.91 | G75: 2 | H75: 0.8603913273
A76: G | B76: RELAIS LARZAC CAFETARIA | C76: 3.74 | D76: 1 | E76: 4.35026738 | F76: 5.4233333 | G76: 3 | H76: 3
A77: G | B77: REST CAFE DES NEGOCIANTS 34 | F77: 35.49 | G77: 1 | H77: 0.7379543533
A78: G | B78: REST LA TERRISSE TOULOUSE | C78: 42.99 | D78: 1 | E78: 0.7429634799 | F78: 50.6275 | G78: 4 | H78: 0.6308824256
A79: G | B79: REST LE CHAUDRON CHAVANNES/L E | F79: 38 | G79: 4 | H79: 1.170131579
A80: G | B80: REST O FIL ROUGE PARIS | C80: 18.93 | D80: 1 | E80: 2.979397781 | F80: 15.4475 | G80: 4 | H80: 3.651076226
A81: G | B81: REST VALTHOGALOU ST MARTIN DE | C81: 73.24 | D81: 1 | E81: 0.5442381213 | F81: 85.41 | G81: 4 | H81: 0.4666900831
A82: G | B82: RESTAURANT AXIS 13006 MARSEILL | F82: 16.41 | G82: 3 | H82: 1.836684948
A83: G | B83: RESTAURANT DE LA PAIX | F83: 17.23 | G83: 3 | H83: 1.520023215
A84: G | B84: RESTAURANT L ORACLE 34 MONTPEL | F84: 36.73 | G84: 1 | H84: 0.7130411108
A85: G | B85: ROYAL ALBI ALBI | F85: 22.49 | G85: 1 | H85: 1.481547354
A86: G | B86: SAERENS BUGGENHOUT | F86: 60.9 | G86: 1 | H86: 0.981773399
A87: G | B87: SARL BALDY | C87: 32.23 | D87: 1 | E87: 0.504809184 | F87: 48.5325 | G87: 4 | H87: 0.356256117
A88: G | B88: SAVEURS DU BESSILLON SILLANS L | F88: 24.445 | G88: 2 | H88: 1.403149928
A89: G | B89: SODEXO SFRS C.CENTRALE NANCY | F89: 664.325 | G89: 2 | H89: 0.3819102096
A90: G | B90: SOREST ALR MONTESSON | C90: 101.98 | D90: 1 | E90: 0.6342616199 | F90: 102.3266667 | G90: 3 | H90: 0.628223337
A91: G | B91: SPAR MONTIGNAC TL761 EDI | C91: 18.87 | D91: 1 | E91: 2.208267091 | F91: 19.5 | G91: 2 | H91: 2.136923077
A92: G | B92: SPECIALITES DE SALAISONS BRACH | C92: 48.02 | D92: 1 | E92: 0.7886297376 | F92: 73.585 | G92: 4 | H92: 0.5261602229
A93: G | B93: STE HOTELIERE DE VALRUGUES ST | F93: 79.9533333 | G93: 3 | H93: 0.4114900358
A94: G | B94: SU (130) VERGEZE PLAT | C94: 43.65 | D94: 1 | E94: 0.7317296678 | F94: 46.3166667 | G94: 3 | H94: 0.6896005757
A95: G | B95: SU (5153) BELBERAUD PLAT | F95: 171.4 | G95: 2 | H95: 0.3390052509
A96: G | B96: SU(0166)CLERMONT L HERAULT PLA | C96: 87.04 | D96: 1 | E96: 0.3284696691 | F96: 102.334 | G96: 5 | H96: 0.2992553794
A97: G | B97: TRADEO BURNHAUPT 68 | F97: 56.3333333 | G97: 3 | H97: 0.6956804734
A98: G | B98: URBAN KITCHEN MARSEILLE | F98: 20.54 | G98: 5 | H98: 1.484907498
A99: G | B99: VENTES AU COMPTANT PE | F99: 6.88 | G99: 1 | H99: 4.985465116
A100: G | B100: VENTES CLIENTS DIVERS | F100: 36.79 | G100: 1 | H100: 0.8263114977
A101: G | B101: VILLE DE NICE LOT VEAU | C101: 1.98 | D101: 1 | E101: 18.43434343 | F101: 1.98 | G101: 1 | H101: 18.43434343
A102: G | B102: VILLE NICE SURGELES VEAU BIO | F102: 259.42 | G102: 2 | H102: 0.4105042017
A103: GS | B103: CASINO CS119 NEMOURS EDI | C103: 23.06 | D103: 6 | E103: 0 | F103: 22.5191667 | G103: 19 | H103: 0.3613218369
A104: GS | B104: CASINO CS370 PARIS/MONTP EDI | C104: 19.8916667 | D104: 4 | E104: 0.818098031 | F104: 23.4575 | G104: 16 | H104: 0.6937369001
A105: GS | B105: CASINO CS530 BRIOUDE EDI | C105: 18.5072727 | D105: 9 | E105: 0.168484134 | F105: 18.2847368 | G105: 13 | H105: 0.2961918195
A106: GS | B106: CASINO CS921 PARIS ITALIE EDI | F106: 72.3133333 | G106: 14 | H106: 0.04500783627
A107: GS | B107: CASINO CS922 PARIS FLANDRE EDI | C107: 19.75875 | D107: 14 | E107: 0.3088505093 | F107: 21.7725581 | G107: 33 | H107: 0.4724423747
A108: GS | B108: CS132 VILLENEUVE/YONNE edi | C108: 25.81125 | D108: 7 | E108: 0 | F108: 27.0333333 | G108: 23 | H108: 0.3611837238
A109: GS | B109: CS528 CHAVILLE EDI | C109: 19.6066667 | D109: 3 | E109: 0 | F109: 19.6066667 | G109: 3 | H109: 0
A110: GS | B110: CS726 VULAINES TRAD EDI | F110: 154.61 | G110: 1 | H110: 0
A111: M | B111: BIE COMBAS CHRISTIAN JARNAC | F111: 230.5 | G111: 1 | H111: 0
A112: M | B112: CG304 ST BRIEUC liv directe | C112: 108.2066667 | D112: 2 | E112: 0 | F112: 108.2066667 | G112: 2 | H112: 0
A113: M | B113: CG809 ST LOUIS liv directe | C113: 219.38 | D113: 2 | E113: 0 | F113: 219.38 | G113: 2 | H113: 0
A114: M | B114: DOUNIA HALLAL BORDEAUX | C114: 175.2409091 | D114: 13 | E114: 0.1925106996 | F114: 134.5651685 | G114: 28 | H114: 0.1952592203
A115: M | B115: G CASINO CG880 VILLENAVE LIV D | C115: 252.0333333 | D115: 2 | E115: 0.150874223 | F115: 252.0333333 | G115: 2 | H115: 0.150874223
A116: M | B116: TRADEO BURNHAUPT 68 | C116: 526.4761111 | D116: 5 | E116: 0.09220931202 | F116: 526.4761111 | G116: 5 | H116: 0.09220931202
A117: M | B117: VALLANCE NANCY 54 | C117: 164.2306897 | D117: 10 | E117: 0.2440755119 | F117: 160.0586792 | G117: 18 | H117: 0.2349337684
A118: M | B118: VALLANCE ST MAX 54 | C118: 182.7214815 | D118: 9 | E118: 0.2336843364 | F118: 184.1565152 | G118: 22 | H118: 0.2189778458
A119: M42 | B119: CASINO CG206 CHASSE/RHON EDI | C119: 20.4981818 | D119: 13 | E119: 1.161464431 | F119: 20.0402632 | G119: 21 | H119: 1.17520124
A120: M42 | B120: CASINO CG341 OYONNAX EDI | C120: 18.5570968 | D120: 21 | E120: 1.265061623 | F120: 18.5245652 | G120: 28 | H120: 1.275432152
A121: M42 | B121: CASINO CG804 CHAUMONT EDI | C121: 28.7927586 | D121: 19 | E121: 0.9001640738 | F121: 29.0123077 | G121: 32 | H121: 0.9220317637
A122: M42 | B122: CASINO CG815 CLERMONT F EDI | C122: 46.1145455 | D122: 8 | E122: 0.5990005126 | F122: 39.9870588 | G122: 12 | H122: 0.6741077996
A123: M42 | B123: CASINO CG831 MONTCEAU EDI | C123: 19.3704 | D123: 17 | E123: 1.214923801 | F123: 18.9269767 | G123: 25 | H123: 1.252327182
A124: M42 | B124: CASINO CG836 TROCY EDI | C124: 18.9223529 | D124: 11 | E124: 1.170946282 | F124: 18.3562069 | G124: 18 | H124: 1.244483685
A125: M42 | B125: CASINO CG879 VILLEUF/SAONE EDI | C125: 22.8314286 | D125: 14 | E125: 1.096936136 | F125: 20.9208571 | G125: 22 | H125: 1.130245961
A126: M42 | B126: CASINO CS119 NEMOURS EDI | C126: 19.9414286 | D126: 5 | E126: 1.103925783 | F126: 19.6918182 | G126: 7 | H126: 1.305761507
A127: M42 | B127: CASINO CS370 PARIS/MONTP EDI | C127: 20.34 | D127: 3 | E127: 1.351760079 | F127: 19.8076923 | G127: 7 | H127: 1.534702913
A128: M42 | B128: CASINO CS530 BRIOUDE EDI | C128: 18.33 | D128: 1 | E128: 0.422913257 | F128: 18.3511111 | G128: 6 | H128: 1.304419956
A129: M42 | B129: CASINO CS551 SALAISE/SANNE EDI | C129: 56.2056667 | D129: 21 | E129: 0.5475966243 | F129: 49.1364815 | G129: 37 | H129: 0.6154343344
A130: M42 | B130: CASINO CS727 HARDRICOURT EDI | C130: 16.5457143 | D130: 9 | E130: 1.511548092 | F130: 16.485 | G130: 18 | H130: 1.515912735
A131: M42 | B131: CASINO CS748 MERIGNAC EDI | C131: 23.7688889 | D131: 7 | E131: 0.8362004488 | F131: 25.030625 | G131: 11 | H131: 0.9873804589
A132: M42 | B132: CASINO CS759 MERIGNAC Y EDI | F132: 72.955 | G132: 2 | H132: 0.5814920156
A133: M42 | B133: CASINO CS921 PARIS ITALIE EDI | F133: 76.7857143 | G133: 5 | H133: 0.4588204651
A134: M42 | B134: CASINO CS922 PARIS FLANDRE EDI | C134: 26.832 | D134: 7 | E134: 0.9212395647 | F134: 25.07 | G134: 12 | H134: 0.9975332228
A135: M42 | B135: CS132 VILLENEUVE/YONNE edi | C135: 33.377 | D135: 7 | E135: 0.7818767415 | F135: 29.0306667 | G135: 10 | H135: 0.9136384513
A136: M42 | B136: CS272 PARIS ST DIDIER edi | C136: 36.8766667 | D136: 18 | E136: 0.7591009069 | F136: 33.3340816 | G136: 30 | H136: 0.8377801723
A137: M42 | B137: CS528 CHAVILLE EDI | C137: 16.2247368 | D137: 12 | E137: 1.559256496 | F137: 15.3382051 | G137: 23 | H137: 1.610729033
A138: M42 | B138: CS595 MONTUSSAN edi | C138: 18.1888889 | D138: 6 | E138: 1.316841784 | F138: 18.0727273 | G138: 7 | H138: 1.405985915
A139: M42 | B139: CS726 VULAINES TRAD EDI | C139: 144.58 | D139: 1 | E139: 0 | F139: 144.58 | G139: 1 | H139: 0
A140: M42 | B140: CS755 IZON edi | C140: 19.1883333 | D140: 7 | E140: 1.256961695 | F140: 23.5235 | G140: 12 | H140: 1.11144175
A141: M42 | B141: G CASINO CG311 LA RICAMARI EDI | C141: 23.3358333 | D141: 9 | E141: 0.9060314966 | F141: 20.0848485 | G141: 23 | H141: 1.140316838
A142: M42 | B142: G CASINO CG334 ANDRE CUBZ EDI | C142: 15.445 | D142: 4 | E142: 1.521322974 | F142: 15.2445455 | G142: 8 | H142: 1.342345996
A143: M42 | B143: G CASINO CG830 MONTHIEU EDI | C143: 19.94 | D143: 1 | E143: 1.600501505 | F143: 19.94 | G143: 1 | H143: 1.600501505
A144: M42 | B144: G CASINO CG880 VILLENAVE EDI | C144: 36.6566667 | D144: 8 | E144: 0.7921319451 | F144: 35.4475 | G144: 10 | H144: 0.8769148036
A145: M42 | B145: SALAISONS DU SANCY BESSE 63 | F145: 209.38 | G145: 1 | H145: 0.2674945076
A146: M42 | B146: SPAR MONTIGNAC TL761 EDI | C146: 17.6 | D146: 1 | E146: 1.788607955 | F146: 17.7466667 | G146: 2 | H146: 1.307682194
A147: MA | B147: ALPAGEL GRENOBLE ECHIROLLES | F147: 33.3758824 | G147: 13 | H147: 0.4565677929
A148: MA | B148: BF VIANDES FONTAINE | C148: 135.1557143 | D148: 11 | E148: 0.2637077339 | F148: 127.7305405 | G148: 18 | H148: 0.2801895037
A149: MA | B149: BIE CHARC LA MUROISE ST BONNET | C149: 43.3615385 | D149: 5 | E149: 0.3496487493 | F149: 43.3615385 | G149: 5 | H149: 0.3496487493
A150: MA | B150: BIGARD LYON CORBAS | F150: 82.742 | G150: 3 | H150: 0.2582412801
A151: MA | B151: BIGARD ST EGREVE | C151: 119.5204444 | D151: 19 | E151: 0.2264098006 | F151: 111.4086667 | G151: 26 | H151: 0.2348943529
A152: MA | B152: BOURAOUI ABDELHAK | C152: 245.0038889 | D152: 7 | E152: 0.1886518808 | F152: 241.2886486 | G152: 20 | H152: 0.2062457436
A153: MA | B153: BRON VIANDE BRON | F153: 368.21 | G153: 5 | H153: 0.2247945466
A154: MA | B154: COBOLY | C154: 20.1166667 | D154: 4 | E154: 0.7482960508 | F154: 18.1590476 | G154: 10 | H154: 0.7896496565
A155: MA | B155: DUCCI LYON | C155: 261.3042857 | D155: 3 | E155: 0.1804240267 | F155: 203.967619 | G155: 11 | H155: 0.2054245305
A156: MA | B156: GAUTHEY GIVORS | F156: 125.99 | G156: 2 | H156: 0.2410984999
A157: MA | B157: GAYET PONTCHARRA | C157: 104.0727273 | D157: 4 | E157: 0.1973209294 | F157: 126.8321053 | G157: 8 | H157: 0.2107838377
A158: MA | B158: GESLER HOTONNES | C158: 361.2329268 | D158: 17 | E158: 0.2058195003 | F158: 315.0080247 | G158: 41 | H158: 0.2125180429
A159: MA | B159: I D FRAIS MONTAGNAT | C159: 28.47 | D159: 1 | E159: 0.531998595 | F159: 28.47 | G159: 1 | H159: 0.531998595
A160: MA | B160: ISERE DISTRIBUTION SA | F160: 91.285 | G160: 2 | H160: 0.2817056472
A161: MA | B161: LA BOUCHERIE LIMOUSINE | F161: 40.825 | G161: 3 | H161: 0.3671198204
A162: MA | B162: LECLERC CHATTE ISERE LR | F162: 43.15 | G162: 2 | H162: 0.3217902665
A163: MA | B163: MAISON TANZILLI MIONS | C163: 27.0905556 | D163: 7 | E163: 0.5597112565 | F163: 27.0905556 | G163: 7 | H163: 0.5597112565
A164: MA | B164: PHILAUD LYON | C164: 45.4666667 | D164: 6 | E164: 0.3605674487 | F164: 52.4588889 | G164: 7 | H164: 0.3282570478
A165: MA | B165: REST LES 2 DAUPHINS VILLEURBAN | C165: 117.19 | D165: 1 | E165: 0.2265466337 | F165: 75.833 | G165: 7 | H165: 0.2545052945
A166: MA | B166: ROLLAND ARS SUR FORMANS | C166: 40.8533333 | D166: 3 | E166: 0.4112434726 | F166: 40.8533333 | G166: 3 | H166: 0.4112434726
A167: MA | B167: ROUDAUT LECLERC ST PAUL ROMANS | F167: 47.5 | G167: 1 | H167: 0
A168: MA | B168: ROUDAUT SAS LECLERC LABEL | F168: 255.2075 | G168: 2 | H168: 0.1189110822
A169: MA | B169: SAVOIE GEL CHAMBERY | C169: 201.159375 | D169: 7 | E169: 0.09286169238 | F169: 161.3907407 | G169: 16 | H169: 0.07823203406
A170: MA | B170: SODELY BRIGNAIS | C170: 470.21 | D170: 1 | E170: 0.216525595 | F170: 470.21 | G170: 1 | H170: 0.216525595
A171: MA | B171: SOPACEL ST ROMAIN DE POPEY | C171: 268.8 | D171: 1 | E171: 0.2190197173 | F171: 268.8 | G171: 1 | H171: 0.2190197173
A172: MD | B172: AL BARAKA BRIVE LA GAILLARDE | C172: 91.195 | D172: 12 | E172: 0.206010929 | F172: 91.195 | G172: 12 | H172: 0.206010929
A173: MD | B173: BIE MGDP INVESTISSEMENT VILLIE | C173: 3979.37 | D173: 9 | E173: 0.2297916504 | F173: 4437.853571 | G173: 14 | H173: 0.2297106951
A174: MD | B174: BIGARD LYON CORBAS | C174: 127.8366667 | D174: 9 | E174: 0.2407247095 | F174: 101.7969565 | G174: 23 | H174: 0.2469656136
A175: MD | B175: CTRE F PLAINEMAISON STEAK HACH | C175: 1842.178947 | D175: 19 | E175: 0.1978376293 | F175: 2312.815556 | G175: 45 | H175: 0.1974931757
A176: MD | B176: CTRE FRANCIS PLAINEMAISON | C176: 241.425 | D176: 8 | E176: 0.2090675158 | F176: 288.6142857 | G176: 21 | H176: 0.2069537527
A177: MD | B177: DEPLANCHE LAUBEYRE | F177: 95.81 | G177: 1 | H177: 0.2615280242
A178: MD | B178: DESTREL GRAMAT 46 | F178: 813.2666667 | G178: 3 | H178: 0.1999819657
A179: MD | B179: ERIC PAYROT SAINT-CERE | C179: 247.1666667 | D179: 3 | E179: 0.1844315576 | F179: 247.1666667 | G179: 3 | H179: 0.1844315576
A180: MD | B180: ETS LOURDEL VAUCHELLES 80 | C180: 172.01 | D180: 2 | E180: 0.404293355 | F180: 172.01 | G180: 2 | H180: 0.404293355
A181: MD | B181: EURODIS RUNGIS(AGNEAUX) | C181: 264.5042857 | D181: 35 | E181: 0.2408013913 | F181: 241.2156164 | G181: 73 | H181: 0.2419413314
A182: MD | B182: FGDS COPVIAL REICHSTETT | C182: 778.4 | D182: 1 | E182: 0 | F182: 778.4 | G182: 1 | H182: 0
A183: MD | B183: METRO PERIGUEUX 24 | C183: 38.43 | D183: 1 | E183: 0.277335415 | F183: 36.905 | G183: 2 | H183: 0.2807343178
A184: MD | B184: OVIMPEX | C184: 626.4533333 | D184: 9 | E184: 0.2339904719 | F184: 548.838 | G184: 25 | H184: 0.2346932246
A185: MD | B185: QUISQUATER & CO DENDERMONDE | C185: 89.0833333 | D185: 9 | E185: 0.2640536327 | F185: 89.0833333 | G185: 9 | H185: 0.2640536327
A186: MD | B186: ROUILLON SAUVAGE STEACK HACHE | C186: 254.4444444 | D186: 18 | E186: 0.3984181223 | F186: 261.636 | G186: 40 | H186: 0.3980794883
A187: MD | B187: SA BELOT FRERES | C187: 216.313 | D187: 10 | E187: 0.3650085755 | F187: 193.6956522 | G187: 23 | H187: 0.3666911336
A188: MD | B188: SARL EXO PRODUITS 19 BRIVE | C188: 79.2157895 | D188: 19 | E188: 0.2111833101 | F188: 81.7355769 | G188: 51 | H188: 0.2099692959
A189: MD | B189: SAUVAGE VIANDES FEUQUIERES | C189: 100.3 | D189: 1 | E189: 0.4172582253 | F189: 104.6333333 | G189: 3 | H189: 0.4159923542
A190: MD | B190: SAUVAGE VIANDES STEACK HACHE | C190: 156.59 | D190: 2 | E190: 0.4060699917 | F190: 293.0966667 | G190: 6 | H190: 0.3967974161
A191: MD | B191: SICABA BOURBON | C191: 88.44 | D191: 1 | E191: 0 | F191: 88.44 | G191: 1 | H191: 0
A192: MD | B192: SODELY BRIGNAIS | C192: 394.12 | D192: 30 | E192: 0.2242395717 | F192: 311.6465957 | G192: 47 | H192: 0.226334521
A193: MD | B193: SODEXO ANOV FRANCE BRIVE | C193: 8.7633333 | D193: 3 | E193: 0.5276531 | F193: 11.246 | G193: 5 | H193: 0.4491908234
A194: MD | B194: SOPACEL ST ROMAIN DE POPEY | C194: 405.65 | D194: 2 | E194: 0.2240120794 | F194: 405.65 | G194: 2 | H194: 0.2240120794
A195: MD | B195: SOUFFERANT VIANDES MARCIGNY 71 | C195: 192.8 | D195: 4 | E195: 0.3452372925 | F195: 218.8444444 | G195: 9 | H195: 0.3433133631
A196: MD | B196: STE GUY LAGACHE FRIAUCOURT | C196: 184.3333333 | D196: 3 | E196: 0.4030723327 | F196: 183.85 | G196: 6 | H196: 0.4031193908
A197: MD | B197: TRADEO BURNHAUPT 68 | F197: 575.1683333 | G197: 6 | H197: 0.2580375021
A198: MD | B198: VIANDES DE CORREZE BRIVE | C198: 123.9555556 | D198: 9 | E198: 0.1969747221 | F198: 111.23375 | G198: 16 | H198: 0.199855035
A199: MDU | B199: 8 A HUIT IGNY MARGUERITE DISTR | C199: 68.1674194 | D199: 10 | E199: 0.1152333676 | F199: 66.5647561 | G199: 24 | H199: 0.1080316069
A200: MDU | B200: AU BOEUF NIVERNAIS 75 PARIS | C200: 92.25375 | D200: 8 | E200: 0.08760438826 | F200: 72.8913636 | G200: 19 | H200: 0.0958824153
A201: MDU | B201: AU BON BILLOT PAMFOU | C201: 41.91125 | D201: 8 | E201: 0.1011363297 | F201: 54.7776 | G201: 20 | H201: 0.1178639931
A202: MDU | B202: BBR BIE LA SABLIERE PARIS14 75 | C202: 640.3846667 | D202: 15 | E202: 0.0779604689 | F202: 478.2683784 | G202: 31 | H202: 0.07446797088
A203: MDU | B203: Be PLACE STALINGRA MEUDON 92 | C203: 74.3115789 | D203: 18 | E203: 0.09798241638 | F203: 59.9889796 | G203: 41 | H203: 0.1173053327
A204: MDU | B204: BIE BARONE GAYLORD SCEAUX | C204: 111.5766667 | D204: 3 | E204: 0 | F204: 111.5766667 | G204: 3 | H204: 0
... 472 more rows

Sheet Tableau stat
A1: Tournées | B1: Clients | C1: Durée mois | D1: Pds/liv | E1: Nb/lib | F1: €/kg | G1: CP | H1: Département
A2: TA | B2: LA FERME DE COLLONGES 01 | C2: 3 | D2: 166.0666667 | E2: 4 | F2: 0.1781011642 | G2: 1000 | H2: =IF(LEN(G2)=4,VALUE(LEFT(G2,1)),VALUE(LEFT(G2,2))) -> 1
A3: M42 | B3: CASINO CG341 OYONNAX EDI | C3: 3 | D3: 18.5570968 | E3: 21 | F3: 1.265061623 | G3: 1100 | H3: =IF(LEN(G3)=4,VALUE(LEFT(G3,1)),VALUE(LEFT(G3,2))) -> 1
A4: MA | B4: I D FRAIS MONTAGNAT | C4: 3 | D4: 28.47 | E4: 1 | F4: 0.531998595 | G4: 1250 | H4: 1
A5: TA | B5: I D FRAIS MONTAGNAT | C5: 3 | D5: 53.015 | E5: 2 | F5: 0.1981514666 | G5: 1250 | H5: 1
A6: MA | B6: GESLER HOTONNES | C6: 3 | D6: 361.2329268 | E6: 17 | F6: 0.2058195003 | G6: 1260 | H6: 1
A7: TA | B7: GESLER HOTONNES | C7: 3 | D7: 382.0855172 | E7: 22 | F7: 0.1940941187 | G7: 1260 | H7: 1
A8: RA | B8: LABEL-VIE MARKET NIMES | C8: 3 | D8: 254.8404 | E8: 25 | F8: 0.219962298 | G8: 3000 | H8: 3
A9: RA | B9: CASINO CS624 FORCALQUIER EDI | C9: 3 | D9: 14.5766667 | E9: 3 | F9: 1.777498285 | G9: 4300 | H9: 4
A10: RA | B10: L ETOILE VERTE NICE 06 | C10: 3 | D10: 493.95 | E10: 4 | F10: 0.2173514526 | G10: 6000 | H10: 6
A11: RA | B11: BIE IBTISSMA LE CANNET | C11: 3 | D11: 263.4115 | E11: 20 | F11: 0.2208531139 | G11: 6110 | H11: 6
A12: RA | B12: BIE STEPHANE CAGNES/MER | C12: 3 | D12: 373.4733333 | E12: 3 | F12: 0.2180325235 | G12: 6110 | H12: 6
A13: G | B13: VILLE DE NICE LOT VEAU | C13: 3 | D13: 1.98 | E13: 1 | F13: 18.43434343 | G13: 6200 | H13: 6
A14: RA | B14: LECLERC NICE NIKAIADIS trad | C14: 3 | D14: 106.365 | E14: 16 | F14: 0.2629642034 | G14: 6201 | H14: 6
A15: RA | B15: BIGARD NICE SA | C15: 3 | D15: 105.3333333 | E15: 4 | F15: 0.2500949367 | G15: 6296 | H15: 6
A16: RA | B16: AMALO BIE L ETOILE VERTE NICE | C16: 3 | D16: 395.4 | E16: 2 | F16: 0.2178641882 | G16: 6300 | H16: 6
A17: RA | B17: ITRAN CANNES | C17: 3 | D17: 81.7133333 | E17: 9 | F17: 0.317540997 | G17: 6400 | H17: 6
A18: RA | B18: LIBAC ST MARTIN VESUBIE | C18: 3 | D18: 240.83 | E18: 3 | F18: 0.2195476754 | G18: 6450 | H18: 6
A19: RA | B19: INTERMARCHE MENTON LR | C19: 3 | D19: 115.0077778 | E19: 18 | F19: 0.2435820766 | G19: 6500 | H19: 6
A20: RA | B20: INTERMARCHE MENTON STANDART | C20: 3 | D20: 161.48 | E20: 2 | F20: 0.2216652217 | G20: 6500 | H20: 6
A21: RA | B21: CHEZ LOUFTI VALBONNE CIRTA | C21: 3 | D21: 140.432 | E21: 5 | F21: 0.2226016862 | G21: 6560 | H21: 6
A22: TI | B22: ALDO QUAGLIOTTI | C22: 3 | D22: 1322.55 | E22: 2 | F22: 0.2461509962 | G22: 10113 | H22: 10
A23: RTD | B23: CASINO CS933 NARBONNE EDI | C23: 3 | D23: 14.4814286 | E23: 7 | F23: 0.1700108513 | G23: 11100 | H23: 11
A24: CAD | B24: EURL MEUNIER MILLAU 12 | C24: 3 | D24: 6.34 | F24: 0.15 | G24: 12000 | H24: 12
A25: RV | B25: VENTES CLIENTS DIVERS | C25: 3 | D25: 21.34 | E25: 1 | F25: 0.7371134021 | G25: 12000 | H25: 12
A26: RTD | B26: G CASINO CG851 DECAZEVILLE EDI | C26: 3 | D26: 61.09 | E26: 1 | F26: 0.1699950892 | G26: 12000 | H26: 12
A27: RT | B27: VENTES DIVERS ARSAC | C27: 3 | D27: 123 | E27: 1 | F27: 0.17 | G27: 12000 | H27: 12
A28: MDU | B28: REST L ENTRACTE DES GOBELINS | C28: 3 | D28: 236.72 | E28: 1 | F28: 0.08073673538 | G28: 12000 | H28: 12
A29: TI | B29: SACAR SANT ALBANO STURA | C29: 3 | D29: 1319.66 | E29: 5 | F29: 0.2453407696 | G29: 12040 | H29: 12
A30: RTD | B30: GEANT CASINO CG335 MILLAU EDI | C30: 3 | D30: 47.593 | E30: 10 | F30: 0.170001891 | G30: 12100 | H30: 12
A31: MDU | B31: BOUGEARD THIERRY VERSAILLES 78 | C31: 3 | D31: 163.1625 | E31: 7 | F31: 0.0820238004 | G31: 12110 | H31: 12
A32: RTD | B32: PRADALIE DAVID | C32: 3 | D32: 52.2233333 | E32: 3 | F32: 0.1700006383 | G32: 12200 | H32: 12
A33: G | B33: RELAIS LARZAC CAFETARIA | C33: 3 | D33: 3.74 | E33: 1 | F33: 4.35026738 | G33: 12230 | H33: 12
A34: RA | B34: CHAUCHARD PONT DE SALARS | C34: 3 | D34: 6.6666667 | E34: 3 | F34: 3.8865 | G34: 12290 | H34: 12
A35: RA | B35: BOUCHERIE JEAN LOUIS CHAUCHARD | C35: 3 | D35: 21.3371429 | E35: 7 | F35: 1.214314408 | G35: 12290 | H35: 12
A36: MA | B36: ROLLAND ARS SUR FORMANS | C36: 3 | D36: 40.8533333 | E36: 3 | F36: 0.4112434726 | G36: 12340 | H36: 12
A37: RTD | B37: FONTANILLES MONTFRANC | C37: 3 | D37: 96.4855556 | E37: 9 | F37: 0.1700012667 | G37: 12380 | H37: 12
A38: G | B38: HOTEL-RESTAURANT DU PONT-NEUF | C38: 3 | D38: 2.47 | E38: 1 | F38: 6.587044534 | G38: 12400 | H38: 12
A39: CAD | B39: GAMEL ET FILS VILLEFRANCHE PAN | C39: 3 | D39: 185.5 | E39: 1 | F39: 0.15 | G39: 12430 | H39: 12
A40: G | B40: L AUBERGE AVEYRONNAISE | C40: 3 | D40: 14.66 | E40: 1 | F40: 3.847203274 | G40: 12500 | H40: 12
A41: RV | B41: RESTAURANT LE BISTROT DU PORT | C41: 3 | D41: 20.84875 | E41: 8 | F41: 0.7692907249 | G41: 12510 | H41: 12
A42: G | B42: SARL BALDY | C42: 3 | D42: 32.23 | E42: 1 | F42: 0.504809184 | G42: 12540 | H42: 12
A43: G | B43: EHPAD MUR DE BARREZ | C43: 3 | D43: 13.63 | E43: 1 | F43: 1.193690389 | G43: 12600 | H43: 12
A44: RTD | B44: CASINO CG846 ONET LE CHAT EDI | C44: 3 | D44: 101.2566667 | E44: 12 | F44: 0.1699995062 | G44: 12850 | H44: 12
A45: MDU | B45: HALLES DE L AVEYRON HERBLAY | C45: 3 | D45: 677.5344545 | E45: 36 | F45: 0.07680325952 | G45: 12850 | H45: 12
A46: RA | B46: MARRA RAPHAEL MARSEILLE 13 | C46: 3 | D46: 93.4105882 | E46: 17 | F46: 0.2847542161 | G46: 13000 | H46: 13
A47: RA | B47: LA GAZELLE D OR MARSEILLE | C47: 3 | D47: 97.5466667 | E47: 3 | F47: 0.2670106616 | G47: 13000 | H47: 13
A48: RA | B48: SARL OUJDA 13 MIRAMAS | C48: 3 | D48: 143.55 | E48: 7 | F48: 0.2423864258 | G48: 13000 | H48: 13
A49: RA | B49: MARSEILLE MEAT COMPAGNY | C49: 3 | D49: 369.4477273 | E49: 22 | F49: 0.2194992526 | G49: 13000 | H49: 13
A50: RA | B50: CMVI MARSEILLE | C50: 3 | D50: 446.326 | E50: 25 | F50: 0.2175805129 | G50: 13000 | H50: 13
A51: RA | B51: LK ALIMENTATION MARSEILLE | C51: 3 | D51: 105.89 | E51: 4 | F51: 0.2519170838 | G51: 13001 | H51: 13
A52: RA | B52: BIE NOOR MARSEILLE | C52: 3 | D52: 618.3758824 | E52: 17 | F52: 0.216936396 | G52: 13001 | H52: 13
A53: RA | B53: ASSAADA MARSEILLE SAADA | C53: 3 | D53: 164.8275 | E53: 12 | F53: 0.2244457589 | G53: 13003 | H53: 13
A54: RA | B54: MORONIE VIANDES MARSEILLE | C54: 3 | D54: 965.25 | E54: 27 | F54: 0.2166238261 | G54: 13003 | H54: 13
A55: RA | B55: BIE MERLIN BERNARD 13 MARSEILL | C55: 3 | D55: 22.25 | E55: 16 | F55: 1.164494382 | G55: 13005 | H55: 13
A56: RA | B56: REST LE BOUCHER MARSEILLE | C56: 3 | D56: 108.2128571 | E56: 14 | F56: 0.2741541143 | G56: 13009 | H56: 13
A57: RA | B57: BIE MAROUX MARSEILLE | C57: 3 | D57: 41.4838462 | E57: 12 | F57: 0.6245804669 | G57: 13012 | H57: 13
A58: TM | B58: DEDE VIANDES | C58: 3 | D58: 644.0769231 | E58: 24 | F58: 0.135917234 | G58: 13014 | H58: 13
A59: RA | B59: PHOCEENNE DES VIANDES HALLAL | C59: 3 | D59: 399.93 | E59: 36 | F59: 0.2189554005 | G59: 13015 | H59: 13
A60: TI | B60: VERCELLI FORMIGLIANA 921 | C60: 3 | D60: 1271.077778 | E60: 9 | F60: 0.2463594325 | G60: 13030 | H60: 13
A61: RA | B61: BIE CHEZ NIHAL AIX EN PROVENCE | C61: 3 | D61: 65.9016667 | E61: 6 | F61: 0.3957335424 | G61: 13090 | H61: 13
A62: RA | B62: MADINA BOUCHERIE | C62: 3 | D62: 597.0157692 | E62: 25 | F62: 0.2190270068 | G62: 13090 | H62: 13
A63: RA | B63: AIX TRAITS DE SAVEURS AIX | C63: 3 | D63: 234.37625 | E63: 16 | F63: 0.2196657618 | G63: 13100 | H63: 13
A64: RA | B64: BIE ST JEAN PORT DE BOUC | C64: 3 | D64: 108.5971429 | E64: 7 | F64: 0.2507300902 | G64: 13110 | H64: 13
A65: RA | B65: BIE ADELIN M RODRIGUES 13 | C65: 3 | D65: 194.73 | E65: 2 | F65: 0.2205541005 | G65: 13130 | H65: 13
A66: RA | B66: BIE CHARCUTERIE YADINE MIRAMAS | C66: 3 | D66: 128.7552941 | E66: 17 | F66: 0.255562307 | G66: 13140 | H66: 13
A67: RA | B67: BIE SOUSS MIRAMAS OURIKA | C67: 3 | D67: 241.5316 | E67: 25 | F67: 0.2195341728 | G67: 13140 | H67: =IF(LEN(G67)=4,VALUE(LEFT(G67,1)),VALUE(LEFT(G67,2))) -> 13
A68: RA | B68: NOCOR SARL | C68: 3 | D68: 176.5335714 | E68: 14 | F68: 0.2302342331 | G68: 13150 | H68: 13
A69: RV | B69: L AMARINE ST REMY DE PROVENCE | C69: 3 | D69: 25.14 | E69: 3 | F69: 0.6256961018 | G69: 13210 | H69: 13
A70: RV | B70: HOTEL IMAGE ST REMY DE PROVENC | C70: 3 | D70: 68.76 | E70: 1 | F70: 0.3148632926 | G70: 13210 | H70: 13
A71: RA | B71: FRANCK BIE SALON DE PROVENCE | C71: 3 | D71: 58.15 | E71: 2 | F71: 0.4455717971 | G71: 13300 | H71: 13
A72: RA | B72: BIE ESSALAM SALON DE PROVENCE | C72: 3 | D72: 90.244 | E72: 20 | F72: 0.2968557466 | G72: 13300 | H72: 13
A73: RA | B73: BIE LES 2 FRERES 13 SALON DE P | C73: 3 | D73: 90.701875 | E73: 16 | F73: 0.3032248506 | G73: 13300 | H73: 13
A74: RA | B74: BIE DHIF 13 SALON DE PROVENCE | C74: 3 | D74: 200.5333333 | E74: 21 | F74: 0.2244457637 | G74: 13300 | H74: 13
A75: RA | B75: AMD BOUCHERIE COQUIERES AUBAGN | C75: 3 | D75: 209.7 | E75: 1 | F75: 0.2201573677 | G75: 13400 | H75: 13
A76: RA | B76: COMPTOIR BIE LES COQUIERES AUB | C76: 3 | D76: 245.4 | E76: 1 | F76: 0.2194743276 | G76: 13400 | H76: 13
A77: RA | B77: CARREFOUR EXPRESS MARTIGUES | C77: 3 | D77: 121.065 | E77: 8 | F77: 0.2275699005 | G77: 13500 | H77: 13
A78: RA | B78: BIE LE LIMOUSIN MARTIGUES | C78: 3 | D78: 148.3573333 | E78: 15 | F78: 0.2378545494 | G78: 13500 | H78: 13
A79: RA | B79: OUBDIL MARIGNANE | C79: 3 | D79: 245.2555556 | E79: 27 | F79: 0.2253913529 | G79: 13700 | H79: 13
A80: TI | B80: GESTIGULLIO Y SRL RAPALLO | C80: 3 | D80: 1993.931111 | E80: 9 | F80: 0.2457947951 | G80: 16035 | H80: 16
A81: TI | B81: CARBONE GIACOMO FRANCO ECSAS | C81: 3 | D81: 478.6355556 | E81: 9 | F81: 0.3193775361 | G81: 16143 | H81: 16
A82: P | B82: NEREVIA | C82: 3 | D82: 9702.34 | E82: 1 | F82: 0.07214754379 | G82: 17510 | H82: 17
A83: RA | B83: METRO LES PENNES MIRABEAU 18 | C83: 3 | D83: 105.33 | E83: 2 | F83: 0.2438811355 | G83: 18000 | H83: 18
A84: MD | B84: SARL EXO PRODUITS 19 BRIVE | C84: 3 | D84: 79.2157895 | E84: 19 | F84: 0.2111833101 | G84: 19000 | H84: 19
A85: MDU | B85: ROYAL VOLAILLE PARIS 19 | C85: 3 | D85: 1142.325172 | E85: 20 | F85: 0.08444159417 | G85: 19000 | H85: 19
A86: TI | B86: VIGNALE GIORGIO SRL | C86: 3 | D86: 431.2657143 | E86: 7 | F86: 0.3474702371 | G86: 19035 | H86: 19
A87: MD | B87: AL BARAKA BRIVE LA GAILLARDE | C87: 3 | D87: 91.195 | E87: 12 | F87: 0.206010929 | G87: 19100 | H87: 19
A88: MD | B88: VIANDES DE CORREZE BRIVE | C88: 3 | D88: 123.9555556 | E88: 9 | F88: 0.1969747221 | G88: 19240 | H88: 19
A89: RA | B89: BIE AZHOUR MOHAMED AJACCIO | C89: 3 | D89: 121.5422222 | E89: 9 | F89: 0.23254836 | G89: 20090 | H89: 20
A90: RA | B90: ALBA ALIMENTATION BIE ARTISANA | C90: 3 | D90: 246.6 | E90: 6 | F90: 0.2194484996 | G90: 20213 | H90: 20
A91: RA | B91: SODIGAV BASTIA | C91: 3 | D91: 170.8944444 | E91: 9 | F91: 0.2414622412 | G91: 20600 | H91: 20
A92: RA | B92: SUPER SOUK FURIANI | C92: 3 | D92: 251.45 | E92: 8 | F92: 0.2193646848 | G92: 20600 | H92: 20
A93: TI | B93: MOLTENI CARNI CANNAGO LENTAT | C93: 3 | D93: 1758.9 | E93: 1 | F93: 0.2447984536 | G93: 20823 | H93: 20
A94: TI | B94: UBOLDI CARNI FENEGRO | C94: 3 | D94: 764.42 | E94: 5 | F94: 0.2648256194 | G94: 22070 | H94: 22
A95: TI | B95: BUZZI S.P.A. GIUSSANO ITALIE | C95: 3 | D95: 2109.544444 | E95: 9 | F95: 0.2457405759 | G95: 22078 | H95: 22
A96: MD | B96: METRO PERIGUEUX 24 | C96: 3 | D96: 38.43 | E96: 1 | F96: 0.277335415 | G96: 24000 | H96: 24
A97: MD | B97: SA BELOT FRERES | C97: 3 | D97: 216.313 | E97: 10 | F97: 0.3650085755 | G97: 25000 | H97: 25
A98: TA | B98: ROUDAUT LECLERC ST PAUL ROMANS | C98: 3 | D98: 88.3007143 | E98: 6 | F98: 0.1141626423 | G98: 26750 | H98: 26
A99: TI | B99: NUOVA SCHINO DOMODOSSOLA 916 | C99: 3 | D99: 843.6666667 | E99: 6 | F99: 0.2469142631 | G99: 28845 | H99: 28
A100: RA | B100: L OASIS 30 NIMES | C100: 3 | D100: 114.539 | E100: 10 | F100: 0.2598852792 | G100: 30000 | H100: 30
A101: RA | B101: BIE YOUSRA NIMES | C101: 3 | D101: 125.6925 | E101: 8 | F101: 0.248108479 | G101: 30000 | H101: 30
A102: RV | B102: NIMES PASSION FROID SOD | C102: 3 | D102: 131.25 | E102: 2 | F102: 0.1538666667 | G102: 30000 | H102: 30
A103: RA | B103: EURO DISCOUNT FRAIS ALES 30 | C103: 3 | D103: 436.35 | E103: 18 | F103: 0.217632507 | G103: 30000 | H103: 30
A104: RA | B104: BIE 3.6.9. NIMES AISSA | C104: 3 | D104: 730.38 | E104: 19 | F104: 0.2180956993 | G104: 30000 | H104: 30
A105: RA | B105: GUY PIERRE ALES | C105: 3 | D105: 77.5342857 | E105: 21 | F105: 0.3342134355 | G105: 30100 | H105: 30
A106: RA | B106: CIRTA ALES | C106: 3 | D106: 174.3863158 | E106: 19 | F106: 0.2273708705 | G106: 30100 | H106: 30
A107: RA | B107: HYPER U ALES | C107: 3 | D107: 180.9457143 | E107: 14 | F107: 0.2209648513 | G107: 30100 | H107: 30
A108: RA | B108: SARL DU SUD BEAUCAIRE | C108: 3 | D108: 222.0538095 | E108: 21 | F108: 0.2244271552 | G108: 30300 | H108: 30
A109: G | B109: SU (130) VERGEZE PLAT | C109: 3 | D109: 43.65 | E109: 1 | F109: 0.7317296678 | G109: 30310 | H109: 30
A110: RA | B110: CLAUZIER CONNAUX | C110: 3 | D110: 56.04 | E110: 11 | F110: 0.4623483226 | G110: 30330 | H110: 30
A111: RA | B111: GOUT ET SAVEURS ST GILLES | C111: 3 | D111: 47.9518182 | E111: 11 | F111: 0.5403340474 | G111: 30800 | H111: 30
A112: RV | B112: AGLOTIZI 30900 NIMES | C112: 3 | D112: 199.74 | E112: 1 | F112: 0.1234604987 | G112: 30900 | H112: 30
A113: RA | B113: BIE ABDERRAHMAN NIMES | C113: 3 | D113: 204.7681818 | E113: 11 | F113: 0.2202992297 | G113: 30900 | H113: 30
A114: RA | B114: AGLOTIZI 30900 NIMES | C114: 3 | D114: 236.2711111 | E114: 9 | F114: 0.2196276406 | G114: 30900 | H114: 30
A115: RTD | B115: CASINO CS909 TLSE L UNION EDI | C115: 3 | D115: 14.3328571 | E115: 7 | F115: 0.1699890362 | G115: 31000 | H115: 31
A116: RTD | B116: CASINO CS902 BONNEFOY EDI | C116: 3 | D116: 14.36 | E116: 2 | F116: 0.1699860724 | G116: 31000 | H116: 31
A117: RTD | B117: CASINO CS919 LA CEPIERE EDI | C117: 3 | D117: 14.67 | E117: 1 | F117: 0.1700068166 | G117: 31000 | H117: 31
A118: G | B118: CASINO CS902 BONNEFOY EDI | C118: 3 | D118: 15.81 | E118: 2 | F118: 0.3388361796 | G118: 31000 | H118: 31
A119: M42 | B119: SPAR MONTIGNAC TL761 EDI | C119: 3 | D119: 17.6 | E119: 1 | F119: 1.788607955 | G119: 31000 | H119: 31
A120: G | B120: SPAR MONTIGNAC TL761 EDI | C120: 3 | D120: 18.87 | E120: 1 | F120: 2.208267091 | G120: 31000 | H120: 31
A121: RT | B121: TRIPERIE GASCONNE TOULOUSE | C121: 3 | D121: 23.9722222 | E121: 16 | F121: 0.17 | G121: 31000 | H121: 31
A122: RTD | B122: CASINO CS907 DEMOISELLE EDI | C122: 3 | D122: 35.9811111 | E122: 9 | F122: 0.1700027792 | G122: 31000 | H122: 31
A123: G | B123: REST LA TERRISSE TOULOUSE | C123: 3 | D123: 42.99 | E123: 1 | F123: 0.7429634799 | G123: 31000 | H123: 31
A124: M42 | B124: CASINO CS551 SALAISE/SANNE EDI | C124: 3 | D124: 56.2056667 | E124: 21 | F124: 0.5475966243 | G124: 31000 | H124: 31
A125: RT | B125: SARL EL BAHIA TOULOUSE | C125: 3 | D125: 67.0875 | E125: 8 | F125: 0.17 | G125: 31000 | H125: 31
A126: RT | B126: QUICK D ORIENT TOULOUSE | C126: 3 | D126: 69.4871429 | E126: 7 | F126: 0.1699985609 | G126: 31000 | H126: 31
A127: RT | B127: BADECHE CHERIF TOULOUSE | C127: 3 | D127: 78.08 | E127: 12 | F127: 0.1700008538 | G127: 31000 | H127: 31
A128: RT | B128: EL BAHIA RUE DU LOT TLSE 31 | C128: 3 | D128: 86.3142857 | E128: 13 | F128: 0.17 | G128: 31000 | H128: 31
A129: RT | B129: LE PALMIER PELISSIER TOULOUSE | C129: 3 | D129: 117.205 | E129: 2 | F129: 0.1699970138 | G129: 31000 | H129: 31
A130: RT | B130: LA MAISON DE L AGNEAU VICTOR H | C130: 3 | D130: 119.9490909 | E130: 11 | F130: 0.1700001516 | G130: 31000 | H130: 31
A131: RT | B131: SARL PROXIM HALAL | C131: 3 | D131: 148.90625 | E131: 16 | F131: 0.17 | G131: 31000 | H131: =IF(LEN(G131)=4,VALUE(LEFT(G131,1)),VALUE(LEFT(G131,2))) -> 31
A132: RT | B132: MARSSA TOULOUSE MINIMES | C132: 3 | D132: 152.8480952 | E132: 21 | F132: 0.1700000935 | G132: 31000 | H132: 31
A133: RT | B133: L ORANAISE TOULOUSE | C133: 3 | D133: 157.65 | E133: 16 | F133: 0.17 | G133: 31000 | H133: 31
A134: RT | B134: BIE LE CRYSTAL TOULOUSE | C134: 3 | D134: 190.2304348 | E134: 23 | F134: 0.17 | G134: 31000 | H134: 31
A135: RTD | B135: TRIPERIE JULIEN CARMAUX | C135: 3 | D135: 219.96125 | E135: 8 | F135: 0.1699998295 | G135: 31000 | H135: 31
A136: RT | B136: SARL LA VEDETTE 31 | C136: 3 | D136: 230.9521739 | E136: 23 | F136: 0.17 | G136: 31000 | H136: 31
A137: RA | B137: MARCHE PROVENCAL TOULON MUSSE | C137: 3 | D137: 319.0219355 | E137: 31 | F137: 0.2190895964 | G137: 31000 | H137: 31
A138: RT | B138: BOUCHERIE EL RAHMA | C138: 3 | D138: 434.885 | E138: 20 | F138: 0.17 | G138: 31000 | H138: 31
A139: RT | B139: QUICK BURGER | C139: 3 | D139: 41.0133333 | E139: 3 | F139: 0.1700016255 | G139: 31100 | H139: 31
A140: RT | B140: SARL EL FETH | C140: 3 | D140: 52.1785714 | E140: 13 | F140: 0.17 | G140: 31100 | H140: 31
A141: RT | B141: SARL IKRAM HALAL | C141: 3 | D141: 52.45625 | E141: 16 | F141: 0.17 | G141: 31100 | H141: 31
A142: RT | B142: ZIANE TOULOUSE | C142: 3 | D142: 316.7125 | E142: 8 | F142: 0.17 | G142: 31100 | H142: 31
A143: RTD | B143: AGROVIA SARL | C143: 3 | D143: 30.0833333 | E143: 6 | F143: 0.17 | G143: 31130 | H143: 31
A144: RTD | B144: G CASINO CG845 FENOUILLET EDI | C144: 3 | D144: 30.305 | E144: 8 | F144: 0.1700008249 | G144: 31150 | H144: 31
A145: RTD | B145: SOVIVO BRUGUIERES STEACK HACHE | C145: 3 | D145: 2246.22 | E145: 10 | F145: 0.17 | G145: 31150 | H145: 31
A146: RTD | B146: BETEILLE PIERRE REVEL | C146: 3 | D146: 146 | E146: 1 | F146: 0.17 | G146: 31250 | H146: 31
A147: RT | B147: NORBERT TRIPERIE TOULOUSE | C147: 3 | D147: 54.25 | E147: 16 | F147: 0.17 | G147: 31300 | H147: 31
A148: RT | B148: SULTAN TOULOUSE KIKIH | C148: 3 | D148: 111.7252941 | E148: 17 | F148: 0.1700004739 | G148: 31300 | H148: 31
A149: RT | B149: BOUCHERIE DES FONTAINES | C149: 3 | D149: 266.81 | E149: 20 | F149: 0.1700003748 | G149: 31300 | H149: 31
A150: RT | B150: YAZID TOULOUSE EL MORCHID | C150: 3 | D150: 456.7315789 | E150: 19 | F150: 0.17 | G150: 31400 | H150: 31
A151: RT | B151: HAMZA MURET | C151: 3 | D151: 139.73 | E151: 4 | F151: 0.1699992843 | G151: 31600 | H151: 31
A152: RT | B152: BIE OCCITANE CORNEBARRIEU | C152: 3 | D152: 205.0111111 | E152: 9 | F152: 0.17 | G152: 31700 | H152: 31
A153: RTD | B153: VM COURTAGE SAMATAN | C153: 3 | D153: 66.3666667 | E153: 3 | F153: 0.17 | G153: 31880 | H153: 31
A154: RA | B154: METRO NICE 32 | C154: 3 | D154: 61.525 | E154: 4 | F154: 0.4211296221 | G154: 32000 | H154: 32
A155: RTD | B155: FARBOS GIMONT | C155: 3 | D155: 158.6266667 | E155: 9 | F155: 0.1699994396 | G155: 32000 | H155: 32
A156: TT | B156: FARBOS GIMONT | C156: 3 | D156: 174.5 | E156: 2 | F156: 0.214269341 | G156: 32000 | H156: 32
A157: RA | B157: FARBOS GIMONT | C157: 3 | D157: 191.32 | E157: 1 | F157: 0.2206564917 | G157: 32000 | H157: 32
A158: G | B158: CASINO CS914 TALENCE EDI | C158: 3 | D158: 19.525 | E158: 2 | F158: 2.13418694 | G158: 33000 | H158: 33
A159: RTD | B159: CASINO CS796 ARCACHON MER EDI | C159: 3 | D159: 18.355 | E159: 2 | F159: 0.1700081722 | G159: 33120 | H159: 33
A160: G | B160: CASINO CS796 ARCACHON MER EDI | C160: 3 | D160: 19.525 | E160: 2 | F160: 0.3388988476 | G160: 33120 | H160: 33
A161: M42 | B161: CS595 MONTUSSAN edi | C161: 3 | D161: 18.1888889 | E161: 6 | F161: 1.316841784 | G161: 33450 | H161: 33
A162: G | B162: CS755 IZON edi | C162: 3 | D162: 18.82 | E162: 1 | F162: 2.2141339 | G162: 33450 | H162: 33
A163: M42 | B163: CS755 IZON edi | C163: 3 | D163: 19.1883333 | E163: 7 | F163: 1.256961695 | G163: 33450 | H163: 33
A164: G | B164: SPECIALITES DE SALAISONS BRACH | C164: 3 | D164: 48.02 | E164: 1 | F164: 0.7886297376 | G164: 33480 | H164: 33
A165: RTD | B165: CASINO CS697 ANDERNOS EDI | C165: 3 | D165: 19.3914286 | E165: 7 | F165: 0.1699941064 | G165: 33510 | H165: 33
A166: G | B166: CASINO CS748 MERIGNAC EDI | C166: 3 | D166: 20.13 | E166: 1 | F166: 2.070044709 | G166: 33689 | H166: 33
A167: M42 | B167: CASINO CS748 MERIGNAC EDI | C167: 3 | D167: 23.7688889 | E167: 7 | F167: 0.8362004488 | G167: 33689 | H167: 33
A168: M | B168: DOUNIA HALLAL BORDEAUX | C168: 3 | D168: 175.2409091 | E168: 13 | F168: 0.1925106996 | G168: 33800 | H168: 33
A169: RA | B169: DOUNIA NIMES | C169: 3 | D169: 214.6 | E169: 2 | F169: 0.2200675676 | G169: 33800 | H169: 33
A170: RV | B170: AU BONHEUR DES TARTES MONTPELL | C170: 3 | D170: 17.1233333 | E170: 9 | F170: 0.9186295503 | G170: 34000 | H170: 34
A171: RV | B171: RESTAURANT O COING | C171: 3 | D171: 19.5428571 | E171: 7 | F171: 0.8048976608 | G171: 34000 | H171: 34
A172: RTD | B172: CASINO CS812 MONTPELLIER EDI | C172: 3 | D172: 19.67 | E172: 9 | F172: 0.1700050839 | G172: 34000 | H172: 34
A173: RV | B173: BRASSERIE LE THEATRE 34 MONTPE | C173: 3 | D173: 20.6877273 | E173: 22 | F173: 0.7603541845 | G173: 34000 | H173: 34
A174: RV | B174: HOTEL MERCURE MONTPELLIER | C174: 3 | D174: 21.7246154 | E174: 13 | F174: 0.7415551307 | G174: 34000 | H174: 34
A175: RV | B175: COMPTOIR DE L ARC MONTPEL 34 | C175: 3 | D175: 23.86 | E175: 8 | F175: 0.6592623638 | G175: 34000 | H175: 34
A176: RV | B176: LE PETIT JARDIN MONTPELLIER | C176: 3 | D176: 24.4535714 | E176: 14 | F176: 0.657689499 | G176: 34000 | H176: 34
A177: RTD | B177: CASINO CS961 MONTPELLIER EDI | C177: 3 | D177: 26.5657143 | E177: 7 | F177: 0.1699989245 | G177: 34000 | H177: 34
A178: RV | B178: RESTAURANT L ORACLE 34 MONTPEL | C178: 3 | D178: 29.70125 | E178: 8 | F178: 0.5503977105 | G178: 34000 | H178: 34
A179: RA | B179: CG810 MONTPEL AUTOedi | C179: 3 | D179: 30.38 | E179: 1 | F179: 0.8528637261 | G179: 34000 | H179: 34
A180: RV | B180: BRASSERIE SCHOLLER MONTPELLIER | C180: 3 | D180: 35.7576923 | E180: 26 | F180: 0.4760030117 | G180: 34000 | H180: 34
A181: RV | B181: DUFFAU FREDERIC MONTPELLIER | C181: 3 | D181: 40.5504651 | E181: 43 | F181: 0.4252811598 | G181: 34000 | H181: 34
A182: G | B182: LES 3 BRASSEURS 34 MONTPELLIER | C182: 3 | D182: 41.86 | E182: 1 | F182: 0.6629240325 | G182: 34000 | H182: 34
A183: RV | B183: REST CAFE DES NEGOCIANTS 34 | C183: 3 | D183: 42.225 | E183: 6 | F183: 0.4153937241 | G183: 34000 | H183: 34
A184: G | B184: CASINO CG815 CLERMONT F EDI | C184: 3 | D184: 44.23 | E184: 1 | F184: 0.9988695456 | G184: 34000 | H184: 34
A185: M42 | B185: CASINO CG815 CLERMONT F EDI | C185: 3 | D185: 46.1145455 | E185: 8 | F185: 0.5990005126 | G185: 34000 | H185: 34
A186: RA | B186: BAB ELMANSOUR MONTPELLIER | C186: 3 | D186: 126.5783333 | E186: 6 | F186: 0.2355932427 | G186: 34000 | H186: 34
A187: RA | B187: L ENCAS 34 LUNEL | C187: 3 | D187: 152.1777778 | E187: 9 | F187: 0.2322619743 | G187: 34000 | H187: 34
A188: RA | B188: BIE ST CLEMENT 34 MONTPELLIER | C188: 3 | D188: 152.6666667 | E188: 6 | F188: 0.2281419214 | G188: 34000 | H188: 34
A189: RA | B189: ERRACHIDIA MONTPELLIER 34 | C189: 3 | D189: 234.7128571 | E189: 7 | F189: 0.2237932063 | G189: 34000 | H189: 34
A190: RA | B190: BIE TAHA MONTPELLIER | C190: 3 | D190: 251.8615385 | E190: 13 | F190: 0.219360149 | G190: 34000 | H190: 34
A191: RA | B191: DESTOCK MARKET 34 MONTPELLIER | C191: 3 | D191: 328.3064706 | E191: 17 | F191: 0.2196710032 | G191: 34000 | H191: 34
A192: RV | B192: BRIAULT MONTPELLIER | C192: 3 | D192: 4.83 | E192: 1 | F192: 3.256728778 | G192: 34070 | H192: 34
A193: RA | B193: BOUCHERIE LE ROYAUME MONTPEL | C193: 3 | D193: 225.4375 | E193: 8 | F193: 0.2259223732 | G193: 34070 | H193: 34
A194: RA | B194: BIE LE ROYAUME TIJANI SETE | C194: 3 | D194: 781.45 | E194: 2 | F194: 0.2165883934 | G194: 34070 | H194: 34
A195: RA | B195: BOUCHERIE ALIM ATLAS | C195: 3 | D195: 135.87375 | E195: 16 | F195: 0.2265301429 | G195: 34080 | H195: =IF(LEN(G195)=4,VALUE(LEFT(G195,1)),VALUE(LEFT(G195,2))) -> 34
A196: RA | B196: LES DELICES D OR MONTPELLIER | C196: 3 | D196: 229.4272727 | E196: 22 | F196: 0.2324844474 | G196: 34080 | H196: 34
A197: RA | B197: BOUCHERIE MEDITERRANEENNE | C197: 3 | D197: 409.0025 | E197: 8 | F197: 0.2177865661 | G197: 34080 | H197: 34
A198: RV | B198: LE FONTENOY MONTPELLIER | C198: 3 | D198: 31.3275 | E198: 4 | F198: 0.5218258718 | G198: 34090 | H198: 34
A199: RV | B199: REST LE MARIE-JEAN SETE | C199: 3 | D199: 10.20625 | E199: 8 | F199: 1.541212492 | G199: 34200 | H199: 34
A200: RV | B200: LA OLA | C200: 3 | D200: 13.77 | E200: 1 | F200: 1.142338417 | G200: 34200 | H200: 34
... 905 more rows

Sheet Stat TCD
A1: Durée mois | B1: (Tous)
A3: Étiquettes de lignes | B3: Somme de Pds/liv | C3: Nombre de Nb/lib | D3: Moyenne de €/kg | E3: Pourcentage poids
A4: 1 | B4: 1898.576066 | C4: 13 | D4: 0.4478575601 | E4: =GETPIVOTDATA("Somme de Pds/liv",$A$3,"Département",1)/GETPIVOTDATA("Somme de Pds/liv",$A$3) -> 0.008283070541
A5: 3 | B5: 493.4495176 | C5: 2 | D5: 0.220489105 | E5: =GETPIVOTDATA("Somme de Pds/liv",$A$3,"Département",3)/GETPIVOTDATA("Somme de Pds/liv",$A$3) -> 0.002152811907
A6: 4 | B6: 33.0328572 | C6: 2 | D6: 1.590681647 | E6: =GETPIVOTDATA("Somme de Pds/liv",$A$3,"Département",4)/GETPIVOTDATA("Somme de Pds/liv",$A$3) -> 0.0001441151035
A7: 6 | B7: 5472.002849 | C7: 28 | D7: 1.569662094 | E7: =GETPIVOTDATA("Somme de Pds/liv",$A$3,"Département",6)/GETPIVOTDATA("Somme de Pds/liv",$A$3) -> 0.02387314704
A8: 10 | B8: 2645.1 | C8: 2 | D8: 0.2461509962 | E8: =GETPIVOTDATA("Somme de Pds/liv",$A$3,"Département",10)/GETPIVOTDATA("Somme de Pds/liv",$A$3) -> 0.01153999056
A9: 11 | B9: 28.8975824 | C9: 2 | D9: 0.1700062261 | E9: =GETPIVOTDATA("Somme de Pds/liv",$A$3,"Département",11)/GETPIVOTDATA("Somme de Pds/liv",$A$3) -> 0.0001260738075
A10: 12 | B10: 7627.580682 | C10: 58 | D10: 1.122118447 | E10: =GETPIVOTDATA("Somme de Pds/liv",$A$3,"Département",12)/GETPIVOTDATA("Somme de Pds/liv",$A$3) -> 0.03327745986
A11: 13 | B11: 21245.32229 | C11: 80 | D11: 0.3319056023 | E11: =GETPIVOTDATA("Somme de Pds/liv",$A$3,"Département",13)/GETPIVOTDATA("Somme de Pds/liv",$A$3) -> 0.09268867669
A12: 16 | B12: 6318.374351 | C12: 5 | D12: 0.2717894879 | E12: =GETPIVOTDATA("Somme de Pds/liv",$A$3,"Département",16)/GETPIVOTDATA("Somme de Pds/liv",$A$3) -> 0.02756568008
A13: 17 | B13: 19126.61 | C13: 2 | D13: 0.0732119269 | E13: =GETPIVOTDATA("Somme de Pds/liv",$A$3,"Département",17)/GETPIVOTDATA("Somme de Pds/liv",$A$3) -> 0.08344520014
A14: 18 | B14: 1070.545238 | C14: 3 | D14: 0.2564183367 | E14: =GETPIVOTDATA("Somme de Pds/liv",$A$3,"Département",18)/GETPIVOTDATA("Somme de Pds/liv",$A$3) -> 0.004670553833
A15: 19 | B15: 3755.72314 | C15: 10 | D15: 0.2029283136 | E15: =GETPIVOTDATA("Somme de Pds/liv",$A$3,"Département",19)/GETPIVOTDATA("Somme de Pds/liv",$A$3) -> 0.01638539548
A16: 20 | B16: 5172.975751 | C16: 11 | D16: 0.2392671953 | E16: =GETPIVOTDATA("Somme de Pds/liv",$A$3,"Département",20)/GETPIVOTDATA("Somme de Pds/liv",$A$3) -> 0.02256855746
A17: 22 | B17: 6223.094444 | C17: 5 | D17: 0.2694788321 | E17: =GETPIVOTDATA("Somme de Pds/liv",$A$3,"Département",22)/GETPIVOTDATA("Somme de Pds/liv",$A$3) -> 0.02714999477
A18: 24 | B18: 75.335 | C18: 2 | D18: 0.2790348664 | E18: =GETPIVOTDATA("Somme de Pds/liv",$A$3,"Département",24)/GETPIVOTDATA("Somme de Pds/liv",$A$3) -> 0.000328670065
A19: 25 | B19: 410.0086522 | C19: 2 | D19: 0.3658498545 | E19: =GETPIVOTDATA("Somme de Pds/liv",$A$3,"Département",25)/GETPIVOTDATA("Somme de Pds/liv",$A$3) -> 0.001788777731
A20: 26 | B20: 160.3512406 | C20: 2 | D20: 0.1137111715 | E20: =GETPIVOTDATA("Somme de Pds/liv",$A$3,"Département",26)/GETPIVOTDATA("Somme de Pds/liv",$A$3) -> 0.0006995772573
A21: 28 | B21: 1669.695238 | C21: 2 | D21: 0.2470915614 | E21: =GETPIVOTDATA("Somme de Pds/liv",$A$3,"Département",28)/GETPIVOTDATA("Somme de Pds/liv",$A$3) -> 0.007284513738
A22: 30 | B22: 7314.319434 | C22: 35 | D22: 0.4032737728 | E22: =GETPIVOTDATA("Somme de Pds/liv",$A$3,"Département",30)/GETPIVOTDATA("Somme de Pds/liv",$A$3) -> 0.03191076981
A23: 31 | B23: 15150.28515 | C23: 87 | D23: 0.3221383581 | E23: =GETPIVOTDATA("Somme de Pds/liv",$A$3,"Département",31)/GETPIVOTDATA("Somme de Pds/liv",$A$3) -> 0.06609736783
A24: 32 | B24: 1164.188051 | C24: 9 | D24: 0.2812153404 | E24: =GETPIVOTDATA("Somme de Pds/liv",$A$3,"Département",32)/GETPIVOTDATA("Somme de Pds/liv",$A$3) -> 0.005079096868
A25: 33 | B25: 1337.210446 | C25: 29 | D25: 0.958183381 | E25: =GETPIVOTDATA("Somme de Pds/liv",$A$3,"Département",33)/GETPIVOTDATA("Somme de Pds/liv",$A$3) -> 0.005833955588
A26: 34 | B26: 10719.15967 | C26: 95 | D26: 0.5263840903 | E26: =GETPIVOTDATA("Somme de Pds/liv",$A$3,"Département",34)/GETPIVOTDATA("Somme de Pds/liv",$A$3) -> 0.04676534022
A27: 37 | B27: 145.655365 | C27: 4 | D27: 0.139037121 | E27: =GETPIVOTDATA("Somme de Pds/liv",$A$3,"Département",37)/GETPIVOTDATA("Somme de Pds/liv",$A$3) -> 0.0006354623785
A28: 38 | B28: 2059.207456 | C28: 20 | D28: 0.2408209377 | E28: =GETPIVOTDATA("Somme de Pds/liv",$A$3,"Département",38)/GETPIVOTDATA("Somme de Pds/liv",$A$3) -> 0.008983870028
A29: 40 | B29: 2244.443041 | C29: 2 | D29: 0.2469294922 | E29: =GETPIVOTDATA("Somme de Pds/liv",$A$3,"Département",40)/GETPIVOTDATA("Somme de Pds/liv",$A$3) -> 0.009792012215
A30: 42 | B30: 2693.590164 | C30: 46 | D30: 0.698525958 | E30: =GETPIVOTDATA("Somme de Pds/liv",$A$3,"Département",42)/GETPIVOTDATA("Somme de Pds/liv",$A$3) -> 0.0117515425
A31: 43 | B31: 267.4778428 | C31: 7 | D31: 0.652667702 | E31: =GETPIVOTDATA("Somme de Pds/liv",$A$3,"Département",43)/GETPIVOTDATA("Somme de Pds/liv",$A$3) -> 0.001166947103
A32: 44 | B32: 87.67 | C32: 1 | D32: 0.5637276149 | E32: =GETPIVOTDATA("Somme de Pds/liv",$A$3,"Département",44)/GETPIVOTDATA("Somme de Pds/liv",$A$3) -> 0.0003824849619
A33: 45 | B33: 1228.570503 | C33: 5 | D33: 0.5271338661 | E33: =GETPIVOTDATA("Somme de Pds/liv",$A$3,"Département",45)/GETPIVOTDATA("Somme de Pds/liv",$A$3) -> 0.005359983368
A34: 46 | B34: 1349.644167 | C34: 5 | D34: 0.8192848308 | E34: =GETPIVOTDATA("Somme de Pds/liv",$A$3,"Département",46)/GETPIVOTDATA("Somme de Pds/liv",$A$3) -> 0.005888201182
A35: 47 | B35: 3575.55996 | C35: 17 | D35: 0.2306098546 | E35: =GETPIVOTDATA("Somme de Pds/liv",$A$3,"Département",47)/GETPIVOTDATA("Somme de Pds/liv",$A$3) -> 0.01559938308
A36: 49 | B36: 323.9342628 | C36: 2 | D36: 0.2377588962 | E36: =GETPIVOTDATA("Somme de Pds/liv",$A$3,"Département",49)/GETPIVOTDATA("Somme de Pds/liv",$A$3) -> 0.001413254068
A37: 50 | B37: 1516.725 | C37: 2 | D37: 0.24772826 | E37: =GETPIVOTDATA("Somme de Pds/liv",$A$3,"Département",50)/GETPIVOTDATA("Somme de Pds/liv",$A$3) -> 0.006617138175
A38: 51 | B38: 1356.05 | C38: 1 | D38: 0.2474333542 | E38: =GETPIVOTDATA("Somme de Pds/liv",$A$3,"Département",51)/GETPIVOTDATA("Somme de Pds/liv",$A$3) -> 0.005916148426
A39: 52 | B39: 1057.2 | C39: 2 | D39: 0.2846197503 | E39: =GETPIVOTDATA("Somme de Pds/liv",$A$3,"Département",52)/GETPIVOTDATA("Somme de Pds/liv",$A$3) -> 0.004612331489
A40: 53 | B40: 1830.04 | C40: 2 | D40: 0.3896745426 | E40: =GETPIVOTDATA("Somme de Pds/liv",$A$3,"Département",53)/GETPIVOTDATA("Somme de Pds/liv",$A$3) -> 0.007984062731
A41: 54 | B41: 691.1673656 | C41: 4 | D41: 0.2329178656 | E41: =GETPIVOTDATA("Somme de Pds/liv",$A$3,"Département",54)/GETPIVOTDATA("Somme de Pds/liv",$A$3) -> 0.003015411469
A42: 55 | B42: 2018.429738 | C42: 4 | D42: 0.459016552 | E42: =GETPIVOTDATA("Somme de Pds/liv",$A$3,"Département",55)/GETPIVOTDATA("Somme de Pds/liv",$A$3) -> 0.008805965798
A43: 56 | B43: 1188.933889 | C43: 3 | D43: 0.2341059174 | E43: =GETPIVOTDATA("Somme de Pds/liv",$A$3,"Département",56)/GETPIVOTDATA("Somme de Pds/liv",$A$3) -> 0.005187057524
A44: 59 | B44: 3475.558798 | C44: 8 | D44: 0.6887549954 | E44: =GETPIVOTDATA("Somme de Pds/liv",$A$3,"Département",59)/GETPIVOTDATA("Somme de Pds/liv",$A$3) -> 0.01516309997
A45: 60 | B45: 408.4122222 | C45: 2 | D45: 0.5479264964 | E45: =GETPIVOTDATA("Somme de Pds/liv",$A$3,"Département",60)/GETPIVOTDATA("Somme de Pds/liv",$A$3) -> 0.001781812858
A46: 62 | B46: 356.21 | C46: 1 | D46: 0.1741266856 | E46: =GETPIVOTDATA("Somme de Pds/liv",$A$3,"Département",62)/GETPIVOTDATA("Somme de Pds/liv",$A$3) -> 0.001554066023
A47: 63 | B47: 2560.502405 | C47: 21 | D47: 0.4586420415 | E47: =GETPIVOTDATA("Somme de Pds/liv",$A$3,"Département",63)/GETPIVOTDATA("Somme de Pds/liv",$A$3) -> 0.01117090983
A48: 64 | B48: 197.8238096 | C48: 9 | D48: 0.2868476655 | E48: =GETPIVOTDATA("Somme de Pds/liv",$A$3,"Département",64)/GETPIVOTDATA("Somme de Pds/liv",$A$3) -> 0.0008630618486
A49: 65 | B49: 800.1710526 | C49: 2 | D49: 0.2027585742 | E49: =GETPIVOTDATA("Somme de Pds/liv",$A$3,"Département",65)/GETPIVOTDATA("Somme de Pds/liv",$A$3) -> 0.003490970623
A50: 66 | B50: 83.3786111 | C50: 2 | D50: 0.1700034614 | E50: =GETPIVOTDATA("Somme de Pds/liv",$A$3,"Département",66)/GETPIVOTDATA("Somme de Pds/liv",$A$3) -> 0.0003637625743
A51: 68 | B51: 2332.413889 | C51: 7 | D51: 0.3911120428 | E51: =GETPIVOTDATA("Somme de Pds/liv",$A$3,"Département",68)/GETPIVOTDATA("Somme de Pds/liv",$A$3) -> 0.01017580971
A52: 69 | B52: 6707.694898 | C52: 44 | D52: 0.3694355882 | E52: =GETPIVOTDATA("Somme de Pds/liv",$A$3,"Département",69)/GETPIVOTDATA("Somme de Pds/liv",$A$3) -> 0.02926420015
A53: 71 | B53: 749.0643211 | C53: 7 | D53: 0.6549517323 | E53: =GETPIVOTDATA("Somme de Pds/liv",$A$3,"Département",71)/GETPIVOTDATA("Somme de Pds/liv",$A$3) -> 0.003268003174
A54: 73 | B54: 1989.289459 | C54: 12 | D54: 0.3231148521 | E54: =GETPIVOTDATA("Somme de Pds/liv",$A$3,"Département",73)/GETPIVOTDATA("Somme de Pds/liv",$A$3) -> 0.008678833157
A55: 74 | B55: 278.0976262 | C55: 5 | D55: 0.4871407984 | E55: =GETPIVOTDATA("Somme de Pds/liv",$A$3,"Département",74)/GETPIVOTDATA("Somme de Pds/liv",$A$3) -> 0.001213278886
A56: 75 | B56: 9987.161366 | C56: 78 | D56: 0.4192620792 | E56: =GETPIVOTDATA("Somme de Pds/liv",$A$3,"Département",75)/GETPIVOTDATA("Somme de Pds/liv",$A$3) -> 0.04357179234
A57: 76 | B57: 58.0766666 | C57: 3 | D57: 1.017626041 | E57: =GETPIVOTDATA("Somme de Pds/liv",$A$3,"Département",76)/GETPIVOTDATA("Somme de Pds/liv",$A$3) -> 0.0002533757455
A58: 77 | B58: 928.3236185 | C58: 15 | D58: 0.5216570373 | E58: =GETPIVOTDATA("Somme de Pds/liv",$A$3,"Département",77)/GETPIVOTDATA("Somme de Pds/liv",$A$3) -> 0.004050072132
A59: 78 | B59: 4168.717716 | C59: 33 | D59: 0.2712803431 | E59: =GETPIVOTDATA("Somme de Pds/liv",$A$3,"Département",78)/GETPIVOTDATA("Somme de Pds/liv",$A$3) -> 0.01818720014
A60: 80 | B60: 3074.28042 | C60: 17 | D60: 0.3933776176 | E60: =GETPIVOTDATA("Somme de Pds/liv",$A$3,"Département",80)/GETPIVOTDATA("Somme de Pds/liv",$A$3) -> 0.01341241051
A61: 81 | B61: 4574.352828 | C61: 17 | D61: 0.2670364888 | E61: =GETPIVOTDATA("Somme de Pds/liv",$A$3,"Département",81)/GETPIVOTDATA("Somme de Pds/liv",$A$3) -> 0.01995689708
A62: 82 | B62: 370.0863163 | C62: 11 | D62: 0.6869487567 | E62: =GETPIVOTDATA("Somme de Pds/liv",$A$3,"Département",82)/GETPIVOTDATA("Somme de Pds/liv",$A$3) -> 0.001614605345
A63: 83 | B63: 10062.98681 | C63: 52 | D63: 0.3423932105 | E63: =GETPIVOTDATA("Somme de Pds/liv",$A$3,"Département",83)/GETPIVOTDATA("Somme de Pds/liv",$A$3) -> 0.04390260209
A64: 84 | B64: 4765.847991 | C64: 28 | D64: 0.3127231614 | E64: =GETPIVOTDATA("Somme de Pds/liv",$A$3,"Département",84)/GETPIVOTDATA("Somme de Pds/liv",$A$3) -> 0.02079234843
A65: 85 | B65: 171.34 | C65: 1 | D65: 0.08240729933 | E65: =GETPIVOTDATA("Somme de Pds/liv",$A$3,"Département",85)/GETPIVOTDATA("Somme de Pds/liv",$A$3) -> 0.0007475188019
A66: 87 | B66: 4685.033789 | C66: 4 | D66: 0.2028380184 | E66: =GETPIVOTDATA("Somme de Pds/liv",$A$3,"Département",87)/GETPIVOTDATA("Somme de Pds/liv",$A$3) -> 0.02043977381
A67: 89 | B67: 252.2962315 | C67: 2 | D67: 0.2894847584 | E67: =GETPIVOTDATA("Somme de Pds/liv",$A$3,"Département",89)/GETPIVOTDATA("Somme de Pds/liv",$A$3) -> 0.001100713066
A68: 91 | B68: 4658.412921 | C68: 26 | D68: 0.20075413 | E68: =GETPIVOTDATA("Somme de Pds/liv",$A$3,"Département",91)/GETPIVOTDATA("Somme de Pds/liv",$A$3) -> 0.02032363281
A69: 92 | B69: 2069.040439 | C69: 28 | D69: 0.2621005066 | E69: =GETPIVOTDATA("Somme de Pds/liv",$A$3,"Département",92)/GETPIVOTDATA("Somme de Pds/liv",$A$3) -> 0.009026769174
A70: 93 | B70: 460.5057616 | C70: 8 | D70: 0.3048624577 | E70: =GETPIVOTDATA("Somme de Pds/liv",$A$3,"Département",93)/GETPIVOTDATA("Somme de Pds/liv",$A$3) -> 0.002009085533
A71: 94 | B71: 14260.25354 | C71: 31 | D71: 0.1334127159 | E71: =GETPIVOTDATA("Somme de Pds/liv",$A$3,"Département",94)/GETPIVOTDATA("Somme de Pds/liv",$A$3) -> 0.06221435531
A72: 95 | B72: 1700.11 | C72: 14 | D72: 0.1106095808 | E72: =GETPIVOTDATA("Somme de Pds/liv",$A$3,"Département",95)/GETPIVOTDATA("Somme de Pds/liv",$A$3) -> 0.007417206667
A73: 97 | B73: 280.0460256 | C73: 2 | D73: 0.0874702803 | E73: =GETPIVOTDATA("Somme de Pds/liv",$A$3,"Département",97)/GETPIVOTDATA("Somme de Pds/liv",$A$3) -> 0.001221779325
A74: Total général | B74: 229211.6259 | C74: 1103 | D74: 0.4614135538

Sheet Carte Prix Moyen
A1: ID | B1: Nom | C1: Prix moyen | E1: min | F1: max | G1: Couleur | H1: 0.1106095808 | I1: =SUMPRODUCT((H1>=E2:E5)*(H1<=F2:F5)*ROW(G2:G5)) -> 2 | K1: entre 0.01€ et 0.24€ bleu très clair
A2: FR-01 | B2: Ain | C2: =GETPIVOTDATA("Moyenne de €/kg",'Stat TCD'!$A$3,"Département",1) -> 0.4478575601 | E2: 0.01 | F2: 0.24 | K2: - entre 0.25€ et 0.74€ bleu clair
A3: FR-02 | B3: Aisne | E3: 0.25 | F3: 0.74 | K3: - entre 0.75€ et 0.99€ bleu foncé
A4: FR-03 | B4: Allier | C4: =GETPIVOTDATA("Moyenne de €/kg",'Stat TCD'!$A$3,"Département",3) -> 0.220489105 | E4: 0.75 | F4: 0.99 | K4: - entre 1.00€ et maximum bleu très foncé
A5: FR-04 | B5: Alpes-de-Haute-Provence | C5: =GETPIVOTDATA("Moyenne de €/kg",'Stat TCD'!$A$3,"Département",4) -> 1.590681647 | E5: 1 | F5: 99
A6: FR-05 | B6: Hautes-Alpes
A7: FR-06 | B7: Alpes-Maritimes | C7: =GETPIVOTDATA("Moyenne de €/kg",'Stat TCD'!$A$3,"Département",6) -> 1.569662094
A8: FR-07 | B8: Ardèche
A9: FR-08 | B9: Ardennes
A10: FR-09 | B10: Ariège
A11: FR-10 | B11: Aube | C11: =GETPIVOTDATA("Moyenne de €/kg",'Stat TCD'!$A$3,"Département",10) -> 0.2461509962
A12: FR-11 | B12: Aude | C12: =GETPIVOTDATA("Moyenne de €/kg",'Stat TCD'!$A$3,"Département",11) -> 0.1700062261
A13: FR-12 | B13: Aveyron | C13: =GETPIVOTDATA("Moyenne de €/kg",'Stat TCD'!$A$3,"Département",12) -> 1.122118447
A14: FR-13 | B14: Bouches-du-Rhône | C14: =GETPIVOTDATA("Moyenne de €/kg",'Stat TCD'!$A$3,"Département",13) -> 0.3319056023
A15: FR-14 | B15: Calvados
A16: FR-15 | B16: Cantal
A17: FR-16 | B17: Charente | C17: =GETPIVOTDATA("Moyenne de €/kg",'Stat TCD'!$A$3,"Département",16) -> 0.2717894879
A18: FR-17 | B18: Charente-Maritime | C18: =GETPIVOTDATA("Moyenne de €/kg",'Stat TCD'!$A$3,"Département",17) -> 0.0732119269
A19: FR-18 | B19: Cher | C19: =GETPIVOTDATA("Moyenne de €/kg",'Stat TCD'!$A$3,"Département",18) -> 0.2564183367
A20: FR-19 | B20: Corrèze | C20: =GETPIVOTDATA("Moyenne de €/kg",'Stat TCD'!$A$3,"Département",19) -> 0.2029283136
A21: FR-21 | B21: Côte-d'Or
A22: FR-22 | B22: Côtes-d'Armor | C22: =GETPIVOTDATA("Moyenne de €/kg",'Stat TCD'!$A$3,"Département",22) -> 0.2694788321
A23: FR-23 | B23: Creuse
A24: FR-24 | B24: Dordogne | C24: =GETPIVOTDATA("Moyenne de €/kg",'Stat TCD'!$A$3,"Département",24) -> 0.2790348664
A25: FR-25 | B25: Doubs | C25: =GETPIVOTDATA("Moyenne de €/kg",'Stat TCD'!$A$3,"Département",25) -> 0.3658498545
A26: FR-26 | B26: Drôme | C26: =GETPIVOTDATA("Moyenne de €/kg",'Stat TCD'!$A$3,"Département",26) -> 0.1137111715
A27: FR-27 | B27: Eure
A28: FR-28 | B28: Eure-et-Loir | C28: =GETPIVOTDATA("Moyenne de €/kg",'Stat TCD'!$A$3,"Département",28) -> 0.2470915614
A29: FR-29 | B29: Finistère
A30: FR-2A | B30: Corse-du-Sud | C30: =GETPIVOTDATA("Moyenne de €/kg",'Stat TCD'!$A$3,"Département",20) -> 0.2392671953
A31: FR-2B | B31: Haute-Corse
A32: FR-30 | B32: Gard | C32: =GETPIVOTDATA("Moyenne de €/kg",'Stat TCD'!$A$3,"Département",30) -> 0.4032737728
A33: FR-31 | B33: Haute-Garonne | C33: =GETPIVOTDATA("Moyenne de €/kg",'Stat TCD'!$A$3,"Département",31) -> 0.3221383581
A34: FR-32 | B34: Gers | C34: =GETPIVOTDATA("Moyenne de €/kg",'Stat TCD'!$A$3,"Département",32) -> 0.2812153404
A35: FR-33 | B35: Gironde | C35: =GETPIVOTDATA("Moyenne de €/kg",'Stat TCD'!$A$3,"Département",33) -> 0.958183381
A36: FR-34 | B36: Hérault | C36: =GETPIVOTDATA("Moyenne de €/kg",'Stat TCD'!$A$3,"Département",34) -> 0.5263840903
A37: FR-35 | B37: Ille-et-Vilaine
A38: FR-36 | B38: Indre
A39: FR-37 | B39: Indre-et-Loire | C39: =GETPIVOTDATA("Moyenne de €/kg",'Stat TCD'!$A$3,"Département",37) -> 0.139037121
A40: FR-38 | B40: Isère | C40: =GETPIVOTDATA("Moyenne de €/kg",'Stat TCD'!$A$3,"Département",38) -> 0.2408209377
A41: FR-39 | B41: Jura
A42: FR-40 | B42: Landes | C42: =GETPIVOTDATA("Moyenne de €/kg",'Stat TCD'!$A$3,"Département",40) -> 0.2469294922
A43: FR-41 | B43: Loir-et-Cher
A44: FR-42 | B44: Loire | C44: =GETPIVOTDATA("Moyenne de €/kg",'Stat TCD'!$A$3,"Département",42) -> 0.698525958
A45: FR-43 | B45: Haute-Loire | C45: =GETPIVOTDATA("Moyenne de €/kg",'Stat TCD'!$A$3,"Département",43) -> 0.652667702
A46: FR-44 | B46: Loire-Atlantique | C46: =GETPIVOTDATA("Moyenne de €/kg",'Stat TCD'!$A$3,"Département",44) -> 0.5637276149
A47: FR-45 | B47: Loiret | C47: =GETPIVOTDATA("Moyenne de €/kg",'Stat TCD'!$A$3,"Département",45) -> 0.5271338661
A48: FR-46 | B48: Lot | C48: =GETPIVOTDATA("Moyenne de €/kg",'Stat TCD'!$A$3,"Département",46) -> 0.8192848308
A49: FR-47 | B49: Lot-et-Garonne | C49: =GETPIVOTDATA("Moyenne de €/kg",'Stat TCD'!$A$3,"Département",47) -> 0.2306098546
A50: FR-48 | B50: Lozère
A51: FR-49 | B51: Maine-et-Loire | C51: =GETPIVOTDATA("Moyenne de €/kg",'Stat TCD'!$A$3,"Département",49) -> 0.2377588962
A52: FR-50 | B52: Manche | C52: =GETPIVOTDATA("Moyenne de €/kg",'Stat TCD'!$A$3,"Département",50) -> 0.24772826
A53: FR-51 | B53: Marne | C53: =GETPIVOTDATA("Moyenne de €/kg",'Stat TCD'!$A$3,"Département",51) -> 0.2474333542
A54: FR-52 | B54: Haute-Marne | C54: =GETPIVOTDATA("Moyenne de €/kg",'Stat TCD'!$A$3,"Département",52) -> 0.2846197503
A55: FR-53 | B55: Mayenne | C55: =GETPIVOTDATA("Moyenne de €/kg",'Stat TCD'!$A$3,"Département",53) -> 0.3896745426
A56: FR-54 | B56: Meurthe-et-Moselle | C56: =GETPIVOTDATA("Moyenne de €/kg",'Stat TCD'!$A$3,"Département",54) -> 0.2329178656
A57: FR-55 | B57: Meuse | C57: =GETPIVOTDATA("Moyenne de €/kg",'Stat TCD'!$A$3,"Département",55) -> 0.459016552
A58: FR-56 | B58: Morbihan | C58: =GETPIVOTDATA("Moyenne de €/kg",'Stat TCD'!$A$3,"Département",56) -> 0.2341059174
A59: FR-57 | B59: Moselle
A60: FR-58 | B60: Nièvre
A61: FR-59 | B61: Nord | C61: =GETPIVOTDATA("Moyenne de €/kg",'Stat TCD'!$A$3,"Département",59) -> 0.6887549954
A62: FR-60 | B62: Oise | C62: =GETPIVOTDATA("Moyenne de €/kg",'Stat TCD'!$A$3,"Département",60) -> 0.5479264964
A63: FR-61 | B63: Orne
A64: FR-62 | B64: Pas-de-Calais | C64: =GETPIVOTDATA("Moyenne de €/kg",'Stat TCD'!$A$3,"Département",62) -> 0.1741266856
A65: FR-63 | B65: Puy-de-Dôme | C65: =GETPIVOTDATA("Moyenne de €/kg",'Stat TCD'!$A$3,"Département",63) -> 0.4586420415
A66: FR-64 | B66: Pyrénées-Atlantiques | C66: =GETPIVOTDATA("Moyenne de €/kg",'Stat TCD'!$A$3,"Département",64) -> 0.2868476655
A67: FR-65 | B67: Haute-Pyrénées | C67: =GETPIVOTDATA("Moyenne de €/kg",'Stat TCD'!$A$3,"Département",65) -> 0.2027585742
A68: FR-66 | B68: Pyrénées-Orientales | C68: =GETPIVOTDATA("Moyenne de €/kg",'Stat TCD'!$A$3,"Département",66) -> 0.1700034614
A69: FR-67 | B69: Bas-Rhin
A70: FR-68 | B70: Haut-Rhin | C70: =GETPIVOTDATA("Moyenne de €/kg",'Stat TCD'!$A$3,"Département",68) -> 0.3911120428
A71: FR-69 | B71: Rhône | C71: =GETPIVOTDATA("Moyenne de €/kg",'Stat TCD'!$A$3,"Département",69) -> 0.3694355882
A72: FR-70 | B72: Haute-Saône
A73: FR-71 | B73: Saône-et-Loire | C73: =GETPIVOTDATA("Moyenne de €/kg",'Stat TCD'!$A$3,"Département",71) -> 0.6549517323
A74: FR-72 | B74: Sarthe
A75: FR-73 | B75: Savoie | C75: =GETPIVOTDATA("Moyenne de €/kg",'Stat TCD'!$A$3,"Département",73) -> 0.3231148521
A76: FR-74 | B76: Haute-Savoie | C76: =GETPIVOTDATA("Moyenne de €/kg",'Stat TCD'!$A$3,"Département",74) -> 0.4871407984
A77: FR-75 | B77: Paris | C77: =GETPIVOTDATA("Moyenne de €/kg",'Stat TCD'!$A$3,"Département",75) -> 0.4192620792
A78: FR-76 | B78: Seine-Maritime | C78: =GETPIVOTDATA("Moyenne de €/kg",'Stat TCD'!$A$3,"Département",76) -> 1.017626041
A79: FR-77 | B79: Seine-et-Marne | C79: =GETPIVOTDATA("Moyenne de €/kg",'Stat TCD'!$A$3,"Département",77) -> 0.5216570373
A80: FR-78 | B80: Yvelines | C80: =GETPIVOTDATA("Moyenne de €/kg",'Stat TCD'!$A$3,"Département",78) -> 0.2712803431
A81: FR-79 | B81: Deux-Sèvres
A82: FR-80 | B82: Somme | C82: =GETPIVOTDATA("Moyenne de €/kg",'Stat TCD'!$A$3,"Département",80) -> 0.3933776176
A83: FR-81 | B83: Tarn | C83: =GETPIVOTDATA("Moyenne de €/kg",'Stat TCD'!$A$3,"Département",81) -> 0.2670364888
A84: FR-82 | B84: Tarn-et-Garonne | C84: =GETPIVOTDATA("Moyenne de €/kg",'Stat TCD'!$A$3,"Département",82) -> 0.6869487567
A85: FR-83 | B85: Var | C85: =GETPIVOTDATA("Moyenne de €/kg",'Stat TCD'!$A$3,"Département",83) -> 0.3423932105
A86: FR-84 | B86: Vaucluse | C86: =GETPIVOTDATA("Moyenne de €/kg",'Stat TCD'!$A$3,"Département",84) -> 0.3127231614
A87: FR-85 | B87: Vendée | C87: =GETPIVOTDATA("Moyenne de €/kg",'Stat TCD'!$A$3,"Département",85) -> 0.08240729933
A88: FR-86 | B88: Vienne
A89: FR-87 | B89: Haute-Vienne | C89: =GETPIVOTDATA("Moyenne de €/kg",'Stat TCD'!$A$3,"Département",87) -> 0.2028380184
A90: FR-88 | B90: Vosges
A91: FR-89 | B91: Yonne | C91: =GETPIVOTDATA("Moyenne de €/kg",'Stat TCD'!$A$3,"Département",89) -> 0.2894847584
A92: FR-90 | B92: Territoire de Belfort
A93: FR-91 | B93: Essonne | C93: =GETPIVOTDATA("Moyenne de €/kg",'Stat TCD'!$A$3,"Département",91) -> 0.20075413
A94: FR-92 | B94: Hauts-de-Seine | C94: =GETPIVOTDATA("Moyenne de €/kg",'Stat TCD'!$A$3,"Département",92) -> 0.2621005066
A95: FR-93 | B95: Seine-Saint-Denis | C95: =GETPIVOTDATA("Moyenne de €/kg",'Stat TCD'!$A$3,"Département",93) -> 0.3048624577
A96: FR-94 | B96: Val-de-Marne | C96: =GETPIVOTDATA("Moyenne de €/kg",'Stat TCD'!$A$3,"Département",94) -> 0.1334127159
A97: FR-95 | B97: Val-d'Oise | C97: =GETPIVOTDATA("Moyenne de €/kg",'Stat TCD'!$A$3,"Département",95) -> 0.1106095808

Sheet Carte Poids pourcentage
A1: ID | B1: Nom | C1: Poids pourcentage | E1: min | F1: max | G1: Couleur | H1: 0.007417206667 | I1: =SUMPRODUCT((H1>=E2:E5)*(H1<=F2:F5)*ROW(G2:G5)) -> 2 | K1: entre 0.01% et 0.99% marron très clair (pâle)
A2: FR-01 | B2: Ain | C2: ='Stat TCD'!E4 -> 0.008283070541 | E2: 0.0001 | F2: 0.0099 | K2: - entre 1.00% et 3.99% marron clair
A3: FR-02 | B3: Aisne | E3: 0.01 | F3: 0.0399 | K3: - entre 4.00% et 6.99% marron foncé
A4: FR-03 | B4: Allier | C4: ='Stat TCD'!E5 -> 0.002152811907 | E4: 0.04 | F4: 0.0699 | K4: - entre 7.00% et maximum marron très foncé
A5: FR-04 | B5: Alpes-de-Haute-Provence | C5: ='Stat TCD'!E6 -> 0.0001441151035 | E5: 0.07 | F5: 1
A6: FR-05 | B6: Hautes-Alpes
A7: FR-06 | B7: Alpes-Maritimes | C7: ='Stat TCD'!E7 -> 0.02387314704
A8: FR-07 | B8: Ardèche
A9: FR-08 | B9: Ardennes
A10: FR-09 | B10: Ariège
A11: FR-10 | B11: Aube | C11: ='Stat TCD'!E8 -> 0.01153999056
A12: FR-11 | B12: Aude | C12: ='Stat TCD'!E9 -> 0.0001260738075
A13: FR-12 | B13: Aveyron | C13: ='Stat TCD'!E10 -> 0.03327745986
A14: FR-13 | B14: Bouches-du-Rhône | C14: ='Stat TCD'!E11 -> 0.09268867669
A15: FR-14 | B15: Calvados
A16: FR-15 | B16: Cantal
A17: FR-16 | B17: Charente | C17: ='Stat TCD'!E12 -> 0.02756568008
A18: FR-17 | B18: Charente-Maritime | C18: ='Stat TCD'!E13 -> 0.08344520014
A19: FR-18 | B19: Cher | C19: ='Stat TCD'!E14 -> 0.004670553833
A20: FR-19 | B20: Corrèze | C20: ='Stat TCD'!E15 -> 0.01638539548
A21: FR-21 | B21: Côte-d'Or
A22: FR-22 | B22: Côtes-d'Armor | C22: ='Stat TCD'!E17 -> 0.02714999477
A23: FR-23 | B23: Creuse
A24: FR-24 | B24: Dordogne | C24: ='Stat TCD'!E18 -> 0.000328670065
A25: FR-25 | B25: Doubs | C25: ='Stat TCD'!E19 -> 0.001788777731
A26: FR-26 | B26: Drôme | C26: ='Stat TCD'!E20 -> 0.0006995772573
A27: FR-27 | B27: Eure
A28: FR-28 | B28: Eure-et-Loir | C28: ='Stat TCD'!E21 -> 0.007284513738
A29: FR-29 | B29: Finistère
A30: FR-2A | B30: Corse-du-Sud
A31: FR-2B | B31: Haute-Corse
A32: FR-30 | B32: Gard | C32: ='Stat TCD'!E22 -> 0.03191076981
A33: FR-31 | B33: Haute-Garonne | C33: ='Stat TCD'!E23 -> 0.06609736783
A34: FR-32 | B34: Gers | C34: ='Stat TCD'!E24 -> 0.005079096868
A35: FR-33 | B35: Gironde | C35: ='Stat TCD'!E25 -> 0.005833955588
A36: FR-34 | B36: Hérault | C36: ='Stat TCD'!E26 -> 0.04676534022
A37: FR-35 | B37: Ille-et-Vilaine
A38: FR-36 | B38: Indre
A39: FR-37 | B39: Indre-et-Loire | C39: ='Stat TCD'!E27 -> 0.0006354623785
A40: FR-38 | B40: Isère | C40: ='Stat TCD'!E28 -> 0.008983870028
A41: FR-39 | B41: Jura
A42: FR-40 | B42: Landes | C42: ='Stat TCD'!E29 -> 0.009792012215
A43: FR-41 | B43: Loir-et-Cher
A44: FR-42 | B44: Loire | C44: ='Stat TCD'!E30 -> 0.0117515425
A45: FR-43 | B45: Haute-Loire | C45: ='Stat TCD'!E31 -> 0.001166947103
A46: FR-44 | B46: Loire-Atlantique | C46: ='Stat TCD'!E32 -> 0.0003824849619
A47: FR-45 | B47: Loiret | C47: ='Stat TCD'!E33 -> 0.005359983368
A48: FR-46 | B48: Lot | C48: ='Stat TCD'!E34 -> 0.005888201182
A49: FR-47 | B49: Lot-et-Garonne | C49: ='Stat TCD'!E35 -> 0.01559938308
A50: FR-48 | B50: Lozère
A51: FR-49 | B51: Maine-et-Loire | C51: ='Stat TCD'!E36 -> 0.001413254068
A52: FR-50 | B52: Manche | C52: ='Stat TCD'!E37 -> 0.006617138175
A53: FR-51 | B53: Marne | C53: ='Stat TCD'!E38 -> 0.005916148426
A54: FR-52 | B54: Haute-Marne | C54: ='Stat TCD'!E39 -> 0.004612331489
A55: FR-53 | B55: Mayenne | C55: ='Stat TCD'!E40 -> 0.007984062731
A56: FR-54 | B56: Meurthe-et-Moselle | C56: ='Stat TCD'!E41 -> 0.003015411469
A57: FR-55 | B57: Meuse | C57: ='Stat TCD'!E42 -> 0.008805965798
A58: FR-56 | B58: Morbihan | C58: ='Stat TCD'!E43 -> 0.005187057524
A59: FR-57 | B59: Moselle
A60: FR-58 | B60: Nièvre
A61: FR-59 | B61: Nord | C61: ='Stat TCD'!E44 -> 0.01516309997
A62: FR-60 | B62: Oise | C62: ='Stat TCD'!E45 -> 0.001781812858
A63: FR-61 | B63: Orne
A64: FR-62 | B64: Pas-de-Calais | C64: ='Stat TCD'!E46 -> 0.001554066023
A65: FR-63 | B65: Puy-de-Dôme | C65: ='Stat TCD'!E47 -> 0.01117090983
A66: FR-64 | B66: Pyrénées-Atlantiques | C66: ='Stat TCD'!E48 -> 0.0008630618486
A67: FR-65 | B67: Haute-Pyrénées | C67: ='Stat TCD'!E49 -> 0.003490970623
A68: FR-66 | B68: Pyrénées-Orientales | C68: ='Stat TCD'!E50 -> 0.0003637625743
A69: FR-67 | B69: Bas-Rhin
A70: FR-68 | B70: Haut-Rhin | C70: ='Stat TCD'!E51 -> 0.01017580971
A71: FR-69 | B71: Rhône | C71: ='Stat TCD'!E52 -> 0.02926420015
A72: FR-70 | B72: Haute-Saône
A73: FR-71 | B73: Saône-et-Loire | C73: ='Stat TCD'!E53 -> 0.003268003174
A74: FR-72 | B74: Sarthe
A75: FR-73 | B75: Savoie | C75: ='Stat TCD'!E54 -> 0.008678833157
A76: FR-74 | B76: Haute-Savoie | C76: ='Stat TCD'!E55 -> 0.001213278886
A77: FR-75 | B77: Paris | C77: ='Stat TCD'!E56 -> 0.04357179234
A78: FR-76 | B78: Seine-Maritime | C78: ='Stat TCD'!E57 -> 0.0002533757455
A79: FR-77 | B79: Seine-et-Marne | C79: ='Stat TCD'!E58 -> 0.004050072132
A80: FR-78 | B80: Yvelines | C80: ='Stat TCD'!E59 -> 0.01818720014
A81: FR-79 | B81: Deux-Sèvres
A82: FR-80 | B82: Somme | C82: ='Stat TCD'!E60 -> 0.01341241051
A83: FR-81 | B83: Tarn | C83: ='Stat TCD'!E61 -> 0.01995689708
A84: FR-82 | B84: Tarn-et-Garonne | C84: ='Stat TCD'!E62 -> 0.001614605345
A85: FR-83 | B85: Var | C85: ='Stat TCD'!E63 -> 0.04390260209
A86: FR-84 | B86: Vaucluse | C86: ='Stat TCD'!E64 -> 0.02079234843
A87: FR-85 | B87: Vendée | C87: ='Stat TCD'!E65 -> 0.0007475188019
A88: FR-86 | B88: Vienne
A89: FR-87 | B89: Haute-Vienne | C89: ='Stat TCD'!E66 -> 0.02043977381
A90: FR-88 | B90: Vosges
A91: FR-89 | B91: Yonne | C91: ='Stat TCD'!E67 -> 0.001100713066
A92: FR-90 | B92: Territoire de Belfort
A93: FR-91 | B93: Essonne | C93: ='Stat TCD'!E68 -> 0.02032363281
A94: FR-92 | B94: Hauts-de-Seine | C94: ='Stat TCD'!E69 -> 0.009026769174
A95: FR-93 | B95: Seine-Saint-Denis | C95: ='Stat TCD'!E70 -> 0.002009085533
A96: FR-94 | B96: Val-de-Marne | C96: ='Stat TCD'!E71 -> 0.06221435531
A97: FR-95 | B97: Val-d'Oise | C97: ='Stat TCD'!E72 -> 0.007417206667
